OrganisationNameLabel,OrganisationURI,EffectiveDate,Directorate/ServiceWhereExpenditureIncurred,ServiceCategoryLabel,ServiceCategoryURI,Supplier,SupplierRegisteredCompany Number,PaymentDate,TransactionNumber,NetAmount,IrrecoverableVAT,PurposeOfSpend,ProcurementClassification:ProclassLabel,ProcrementClassification:ProClassCode
South Lakeland District Council,http://opendatacommunities.org/id/district-council/south-lakeland,31/07/2021,Support Services,Central Services,http://opendatacommunities.org/def/concept/finance/sercop/objective/102,GRANTS- MISCELLANEOUS,,28/07/2021,167684,250,0,Locality donation to fund gardening,201700,Financial Services Grants
South Lakeland District Council,http://opendatacommunities.org/id/district-council/south-lakeland,31/07/2021,Business Support Community Services,Cultural Environmental Regulatory & Planning Services,http://opendatacommunities.org/def/concept/finance/sercop/objective/104,LANCASHIRE DAF,,28/07/2021,167780,250,0,Parts,381400,Vehicle Mgt Maintenance
South Lakeland District Council,http://opendatacommunities.org/id/district-council/south-lakeland,31/07/2021,Assets and Commercial Services,Central Services,http://opendatacommunities.org/def/concept/finance/sercop/objective/102,PHS GROUP PLC,,19/07/2021,166595,258.36,0,PO to cover account 4544253-,131312,Cleaning & Janitorial Washroom Sanitat
South Lakeland District Council,http://opendatacommunities.org/id/district-council/south-lakeland,31/07/2021,Business Support Community Services,Cultural Environmental Regulatory & Planning Services,http://opendatacommunities.org/def/concept/finance/sercop/objective/104,COMPASS COMPONENTS,,28/07/2021,167373,267.4,0,Parts,101400,Building General Materials
South Lakeland District Council,http://opendatacommunities.org/id/district-council/south-lakeland,31/07/2021,Support Services,Central Services,http://opendatacommunities.org/def/concept/finance/sercop/objective/102,BEVAN BRITTAN,OC309219,28/07/2021,167427,268.5,0,Kendal Town Hall Construction Contract,280000,Legal Services
South Lakeland District Council,http://opendatacommunities.org/id/district-council/south-lakeland,31/07/2021,Case Management Account Mgmt,Highways & Transport Services,http://opendatacommunities.org/def/concept/finance/sercop/objective/107,PATROL,,28/07/2021,167785,271.5,0,"TPT costs, 40p per PCN for 01/04/2021",192214,Facilities Security Street Wardens
South Lakeland District Council,http://opendatacommunities.org/id/district-council/south-lakeland,31/07/2021,Business Support Community Services,Cultural Environmental Regulatory & Planning Services,http://opendatacommunities.org/def/concept/finance/sercop/objective/104,GARWOOD EUROPE LTD,4333504,28/07/2021,167650,279.36,0,Parts,182011,Environment Waste Management Consumables
South Lakeland District Council,http://opendatacommunities.org/id/district-council/south-lakeland,31/07/2021,Assets and Commercial Services,External Trading Accounts,,Ulverston Properties Limited,,07/07/2021,166241,281.67,0,Rental fees for Room 106 ulverston,190000,Facilities & Management Services
South Lakeland District Council,http://opendatacommunities.org/id/district-council/south-lakeland,31/07/2021,Support Services,Non-Service Payments,,COMPUTERSHARE VOUCHER SERVICES LTD,4968447,19/07/2021,167086,283,0,Child Care Vouchers 20/21,202100,Financial Services Subscriptions
South Lakeland District Council,http://opendatacommunities.org/id/district-council/south-lakeland,31/07/2021,Business Support Community Services,Cultural Environmental Regulatory & Planning Services,http://opendatacommunities.org/def/concept/finance/sercop/objective/104,LANCASHIRE DAF,,28/07/2021,167371,287,0,Parts,381400,Vehicle Mgt Maintenance
South Lakeland District Council,http://opendatacommunities.org/id/district-council/south-lakeland,31/07/2021,Business Support Community Services,Cultural Environmental Regulatory & Planning Services,http://opendatacommunities.org/def/concept/finance/sercop/objective/104,K S INTERNATIONAL LTD,2703321,12/07/2021,166542,290,0,Parts,381500,Vehicle Mgt Parts
South Lakeland District Council,http://opendatacommunities.org/id/district-council/south-lakeland,31/07/2021,Business Support Community Services,Cultural Environmental Regulatory & Planning Services,http://opendatacommunities.org/def/concept/finance/sercop/objective/104,HYDRAIR TRUCK & TRAILER PARTS LTD,,19/07/2021,167068,291.9,0,Parts,381500,Vehicle Mgt Parts
South Lakeland District Council,http://opendatacommunities.org/id/district-council/south-lakeland,31/07/2021,Lake Wardens,Cultural Environmental Regulatory & Planning Services,http://opendatacommunities.org/def/concept/finance/sercop/objective/104,PHS GROUP PLC,,14/07/2021,166406,292.52,0,Annual Contract Fee for Sanitary,131312,Cleaning & Janitorial Washroom Sanitat
South Lakeland District Council,http://opendatacommunities.org/id/district-council/south-lakeland,31/07/2021,Business Support Community Services,Cultural Environmental Regulatory & Planning Services,http://opendatacommunities.org/def/concept/finance/sercop/objective/104,HYDRAIR TRUCK & TRAILER PARTS LTD,,07/07/2021,166463,295,0,Parts,381500,Vehicle Mgt Parts
South Lakeland District Council,http://opendatacommunities.org/id/district-council/south-lakeland,31/07/2021,Case Management Account Mgmt,Cultural Environmental Regulatory & Planning Services,http://opendatacommunities.org/def/concept/finance/sercop/objective/104,CONTINENTAL LANDSCAPES LTD,2108452,19/07/2021,166719,298.35,0,Grounds maintenance extra works for,391310,Construction Open Spaces Construction
South Lakeland District Council,http://opendatacommunities.org/id/district-council/south-lakeland,31/07/2021,Kendal Town Hall,Central Services,http://opendatacommunities.org/def/concept/finance/sercop/objective/102,SOUNDSMITH LIMITED,5366630,19/07/2021,166582,300,0,Re--hanging replacement screen in the,171111,Education Audio Visual
South Lakeland District Council,http://opendatacommunities.org/id/district-council/south-lakeland,31/07/2021,Support Services,Cultural Environmental Regulatory & Planning Services,http://opendatacommunities.org/def/concept/finance/sercop/objective/104,PS BUSINESS MATTERS,8147185,14/07/2021,166656,300,0,RHSS Welcome Back Activity Plan,151900,Consultancy Management
South Lakeland District Council,http://opendatacommunities.org/id/district-council/south-lakeland,31/07/2021,Case Management Regulatory,Central Services,http://opendatacommunities.org/def/concept/finance/sercop/objective/102,The Oyster Partnership,5020374,19/07/2021,166706,304,0,Agency Officer to cover assessment of,261300,HR Recruitment & Assessment
South Lakeland District Council,http://opendatacommunities.org/id/district-council/south-lakeland,31/07/2021,Case Management Regulatory,Central Services,http://opendatacommunities.org/def/concept/finance/sercop/objective/102,The Oyster Partnership,5020374,26/07/2021,167217,304,0,Agency Officer to cover assessment of,261300,HR Recruitment & Assessment
South Lakeland District Council,http://opendatacommunities.org/id/district-council/south-lakeland,31/07/2021,Business Support Community Services,Cultural Environmental Regulatory & Planning Services,http://opendatacommunities.org/def/concept/finance/sercop/objective/104,LANCASHIRE DAF,,05/07/2021,166226,308.72,0,Parts,381400,Vehicle Mgt Maintenance
South Lakeland District Council,http://opendatacommunities.org/id/district-council/south-lakeland,31/07/2021,Business Support Community Services,Cultural Environmental Regulatory & Planning Services,http://opendatacommunities.org/def/concept/finance/sercop/objective/104,HAKO MACHINES LIMITED,1414225,28/07/2021,167369,313.44,0,Parts,131000,Cleaning & Janitorial Cleaning Materials
South Lakeland District Council,http://opendatacommunities.org/id/district-council/south-lakeland,31/07/2021,Assets and Commercial Services,Central Services,http://opendatacommunities.org/def/concept/finance/sercop/objective/102,ADECCO UK LIMITED,593232,07/07/2021,165689,314.79,0,cleaning services,261400,HR Temporary & Agency Staff
South Lakeland District Council,http://opendatacommunities.org/id/district-council/south-lakeland,31/07/2021,Assets and Commercial Services,Central Services,http://opendatacommunities.org/def/concept/finance/sercop/objective/102,ADECCO UK LIMITED,593232,19/07/2021,167156,314.79,0,cleaning services,261400,HR Temporary & Agency Staff
South Lakeland District Council,http://opendatacommunities.org/id/district-council/south-lakeland,31/07/2021,Case Management Regulatory,Cultural Environmental Regulatory & Planning Services,http://opendatacommunities.org/def/concept/finance/sercop/objective/104,NEWSQUEST MEDIA GROUP LTD,3102566,12/07/2021,165635,315.26,0,Public notices for planning applications,191000,Facilities Advertising
South Lakeland District Council,http://opendatacommunities.org/id/district-council/south-lakeland,31/07/2021,Business Support Community Services,Cultural Environmental Regulatory & Planning Services,http://opendatacommunities.org/def/concept/finance/sercop/objective/104,DENNIS EAGLE LTD,3794455,21/07/2021,167235,319.9,0,Parts,381300,Vehicle Mgt Industrial
South Lakeland District Council,http://opendatacommunities.org/id/district-council/south-lakeland,31/07/2021,Business Support Community Services,Cultural Environmental Regulatory & Planning Services,http://opendatacommunities.org/def/concept/finance/sercop/objective/104,LANCASHIRE DAF,,19/07/2021,167069,325,0,Parts,381400,Vehicle Mgt Maintenance
South Lakeland District Council,http://opendatacommunities.org/id/district-council/south-lakeland,31/07/2021,Business Support Community Services,Cultural Environmental Regulatory & Planning Services,http://opendatacommunities.org/def/concept/finance/sercop/objective/104,LANCASHIRE DAF,,26/07/2021,167112,325,0,Parts,381400,Vehicle Mgt Maintenance
South Lakeland District Council,http://opendatacommunities.org/id/district-council/south-lakeland,31/07/2021,Business Support Community Services,Cultural Environmental Regulatory & Planning Services,http://opendatacommunities.org/def/concept/finance/sercop/objective/104,Romaquip UK,,12/07/2021,166643,325.65,0,Parts,381000,Vehicle Mgt Commercial
South Lakeland District Council,http://opendatacommunities.org/id/district-council/south-lakeland,31/07/2021,Case Management Regulatory,Cultural Environmental Regulatory & Planning Services,http://opendatacommunities.org/def/concept/finance/sercop/objective/104,BSI (MEMBERSHIP),,26/07/2021,167387,334.4,0,BSI Subscribing Membership,202100,Financial Services Subscriptions
South Lakeland District Council,http://opendatacommunities.org/id/district-council/south-lakeland,31/07/2021,Case Management Regulatory,Cultural Environmental Regulatory & Planning Services,http://opendatacommunities.org/def/concept/finance/sercop/objective/104,NEWSQUEST MEDIA GROUP LTD,3102566,14/07/2021,166432,336.6,0,Public notices for planning applications,191000,Facilities Advertising
South Lakeland District Council,http://opendatacommunities.org/id/district-council/south-lakeland,31/07/2021,Westmorland Centre Parking Office,Highways & Transport Services,http://opendatacommunities.org/def/concept/finance/sercop/objective/107,Thomas Graham & Sons Ltd (Cleaning Supp),,05/07/2021,166234,337.2,0,x50 type surgical masks,131010,Cleaning & Janitorial Cleaning Materials
South Lakeland District Council,http://opendatacommunities.org/id/district-council/south-lakeland,31/07/2021,Human Resources,Central Services,http://opendatacommunities.org/def/concept/finance/sercop/objective/102,STEVEN BARBER PHOTOGRAPHY LTD,6058535,12/07/2021,166620,350,0,South Lakeland News Photography,191100,Facilities Design & Photography
South Lakeland District Council,http://opendatacommunities.org/id/district-council/south-lakeland,31/07/2021,Assets and Commercial Services,Central Services,http://opendatacommunities.org/def/concept/finance/sercop/objective/102,Paul Hopwood,,14/07/2021,166718,350,0,MArket hall agency cleaner,131310,Cleaning & Janitorial Cleaning Service
South Lakeland District Council,http://opendatacommunities.org/id/district-council/south-lakeland,31/07/2021,Lake Wardens,Other Items,,THOMAS GRAHAM & SONS LTD,656879,05/07/2021,166229,359.94,0,2 x Tubs of Jangro Urinal Blocks,101400,Building General Materials
South Lakeland District Council,http://opendatacommunities.org/id/district-council/south-lakeland,31/07/2021,Business Support Community Services,Cultural Environmental Regulatory & Planning Services,http://opendatacommunities.org/def/concept/finance/sercop/objective/104,ARCO LIMITED,133804,07/07/2021,166459,363.61,0,Cleaning materials,141100,Clothing Protective
South Lakeland District Council,http://opendatacommunities.org/id/district-council/south-lakeland,31/07/2021,Assets and Commercial Services,Central Services,http://opendatacommunities.org/def/concept/finance/sercop/objective/102,CUMBRIA WASTE RECYCLING LTD,3162439,19/07/2021,166868,365.97,0,PO to cover monthly collection of,182012,Environment Waste Management Recycling
South Lakeland District Council,http://opendatacommunities.org/id/district-council/south-lakeland,31/07/2021,Case Management,Housing Services,http://opendatacommunities.org/def/concept/finance/sercop/objective/108,Landlord,,07/07/2021,166413,370,0,Flat ,202000,Financial Services Rents
South Lakeland District Council,http://opendatacommunities.org/id/district-council/south-lakeland,31/07/2021,Human Resources,Central Services,http://opendatacommunities.org/def/concept/finance/sercop/objective/102,MIDLAND SOFTWARE LTD,1852206,01/07/2021,164591,371.83,0,Quarterly Charge - iTrent Software,271600,ICT Software Customised & Bespoke
South Lakeland District Council,http://opendatacommunities.org/id/district-council/south-lakeland,31/07/2021,Assets and Commercial Services,Central Services,http://opendatacommunities.org/def/concept/finance/sercop/objective/102,ADECCO UK LIMITED,593232,07/07/2021,166455,374.75,0,cleaning services,261400,HR Temporary & Agency Staff
South Lakeland District Council,http://opendatacommunities.org/id/district-council/south-lakeland,31/07/2021,Case Management People,Housing Services,http://opendatacommunities.org/def/concept/finance/sercop/objective/108,Tommy's Removals and Storage,,14/07/2021,166407,375,0,Removals,250000,Housing
South Lakeland District Council,http://opendatacommunities.org/id/district-council/south-lakeland,31/07/2021,Lake Wardens,Cultural Environmental Regulatory & Planning Services,http://opendatacommunities.org/def/concept/finance/sercop/objective/104,CUMBRIA WASTE RECYCLING LTD,3162439,19/07/2021,166861,377.41,0,Emptying of Refuse Wheelie Bins,182012,Environment Waste Management Recycling
South Lakeland District Council,http://opendatacommunities.org/id/district-council/south-lakeland,31/07/2021,Business Support Community Services,Cultural Environmental Regulatory & Planning Services,http://opendatacommunities.org/def/concept/finance/sercop/objective/104,CUMBRIA TRUCK CENTRE LTD,4298488,19/07/2021,166819,383.99,0,Repairs,381300,Vehicle Mgt Industrial
South Lakeland District Council,http://opendatacommunities.org/id/district-council/south-lakeland,31/07/2021,Financial Services,Central Services,http://opendatacommunities.org/def/concept/finance/sercop/objective/102,INTEGRA USER GROUP,2999829,07/07/2021,166434,385,0,Annual subscription to Integra User,271600,ICT Software Customised & Bespoke
South Lakeland District Council,http://opendatacommunities.org/id/district-council/south-lakeland,31/07/2021,Finance,Central Services,http://opendatacommunities.org/def/concept/finance/sercop/objective/102,INTEGRA USER GROUP,2999829,07/07/2021,166435,385,0,Integra User Group membership,271600,ICT Software Customised & Bespoke
South Lakeland District Council,http://opendatacommunities.org/id/district-council/south-lakeland,31/07/2021,Case Management,Housing Services,http://opendatacommunities.org/def/concept/finance/sercop/objective/108,SOUTH LAKES HOUSING RENT A/C,,14/07/2021,166660,385.54,0,Rent ,191700,Facilities Property Management
South Lakeland District Council,http://opendatacommunities.org/id/district-council/south-lakeland,31/07/2021,Case Management Account Mgmt,Highways & Transport Services,http://opendatacommunities.org/def/concept/finance/sercop/objective/107,METRIC GROUP LIMITED,2560839,28/07/2021,167701,390.15,0,Car park machine maintenance 2021-2022.,359999,Street & Traffic Not Elsewhere Classifie
South Lakeland District Council,http://opendatacommunities.org/id/district-council/south-lakeland,31/07/2021,Case Management Account Mgmt,Highways & Transport Services,http://opendatacommunities.org/def/concept/finance/sercop/objective/107,METRIC GROUP LIMITED,2560839,28/07/2021,167701,390.15,0,Car park machine maintenance 2021-2022.,359999,Street & Traffic Not Elsewhere Classifie
South Lakeland District Council,http://opendatacommunities.org/id/district-council/south-lakeland,31/07/2021,Case Management Account Mgmt,Highways & Transport Services,http://opendatacommunities.org/def/concept/finance/sercop/objective/107,METRIC GROUP LIMITED,2560839,28/07/2021,167701,390.15,0,Car park machine maintenance 2021-2022.,359999,Street & Traffic Not Elsewhere Classifie
South Lakeland District Council,http://opendatacommunities.org/id/district-council/south-lakeland,31/07/2021,Case Management Account Mgmt,Other Items,,ADECCO UK LIMITED,593232,21/07/2021,167155,390.6,0,Agency Staff for Business Grants Support,261400,HR Temporary & Agency Staff
South Lakeland District Council,http://opendatacommunities.org/id/district-council/south-lakeland,31/07/2021,Case Management Regulatory,Cultural Environmental Regulatory & Planning Services,http://opendatacommunities.org/def/concept/finance/sercop/objective/104,Acoem UK Ltd,,14/07/2021,166654,395,0,Back to Base Service,181900,Environment Testing & Inspection
South Lakeland District Council,http://opendatacommunities.org/id/district-council/south-lakeland,31/07/2021,Case Management Account Mgmt,Cultural Environmental Regulatory & Planning Services,http://opendatacommunities.org/def/concept/finance/sercop/objective/104,Green Small Business,,07/07/2021,166499,398.5,0,Environmental advice and environmental,151000,Consultancy Business
South Lakeland District Council,http://opendatacommunities.org/id/district-council/south-lakeland,31/07/2021,Case Management People,Housing Services,http://opendatacommunities.org/def/concept/finance/sercop/objective/108,D Clark Properties,,12/07/2021,166632,400,0,"Accommodation, The Lodge",250000,Housing
South Lakeland District Council,http://opendatacommunities.org/id/district-council/south-lakeland,31/07/2021,Case Management People,Housing Services,http://opendatacommunities.org/def/concept/finance/sercop/objective/108,D Clark Properties,,26/07/2021,167301,400,0,"Accommodation, The Lodge",250000,Housing
South Lakeland District Council,http://opendatacommunities.org/id/district-council/south-lakeland,31/07/2021,Case Management People,Housing Services,http://opendatacommunities.org/def/concept/finance/sercop/objective/108,Landlord,,05/07/2021,166245,415,0,Flat ,250010,Housing Letting Agents
South Lakeland District Council,http://opendatacommunities.org/id/district-council/south-lakeland,31/07/2021,Business Support Community Services,Cultural Environmental Regulatory & Planning Services,http://opendatacommunities.org/def/concept/finance/sercop/objective/104,LANCASHIRE DAF,,07/07/2021,166488,415.39,0,Parts,381400,Vehicle Mgt Maintenance
South Lakeland District Council,http://opendatacommunities.org/id/district-council/south-lakeland,31/07/2021,Business Support Community Services,Cultural Environmental Regulatory & Planning Services,http://opendatacommunities.org/def/concept/finance/sercop/objective/104,Enevo UK Ltd,9347391,19/07/2021,167067,416,0,Subscriptions,261517,ICT-Consultancy
South Lakeland District Council,http://opendatacommunities.org/id/district-council/south-lakeland,31/07/2021,Business Support Community Services,Cultural Environmental Regulatory & Planning Services,http://opendatacommunities.org/def/concept/finance/sercop/objective/104,LANCASHIRE DAF,,26/07/2021,167383,418.57,0,Parts,381400,Vehicle Mgt Maintenance
South Lakeland District Council,http://opendatacommunities.org/id/district-council/south-lakeland,31/07/2021,Support Services,Central Services,http://opendatacommunities.org/def/concept/finance/sercop/objective/102,Zurich Municipal (BACS),BR7985,14/07/2021,166663,421.96,0,Invoice relating to 2019 property,201800,Financial Services Insurance
South Lakeland District Council,http://opendatacommunities.org/id/district-council/south-lakeland,31/07/2021,Business Support Community Services,Cultural Environmental Regulatory & Planning Services,http://opendatacommunities.org/def/concept/finance/sercop/objective/104,FAUN ZOELLER (UK) LTD,751804,19/07/2021,166845,423.48,0,Parts,381400,Vehicle Mgt Maintenance
South Lakeland District Council,http://opendatacommunities.org/id/district-council/south-lakeland,31/07/2021,Westmorland Centre Parking Office,Highways & Transport Services,http://opendatacommunities.org/def/concept/finance/sercop/objective/107,Security Plus   Limited,,21/07/2021,166877,425,0,Bulk cash collection April 2021-March,209999,Financial Services Not Elsewhere Classif
South Lakeland District Council,http://opendatacommunities.org/id/district-council/south-lakeland,31/07/2021,Business Support Community Services,Cultural Environmental Regulatory & Planning Services,http://opendatacommunities.org/def/concept/finance/sercop/objective/104,ADECCO UK LIMITED,593232,28/07/2021,167438,433.16,0,Agency staff 2021/22,261400,HR Temporary & Agency Staff
South Lakeland District Council,http://opendatacommunities.org/id/district-council/south-lakeland,31/07/2021,Support Services,Cultural Environmental Regulatory & Planning Services,http://opendatacommunities.org/def/concept/finance/sercop/objective/104,WiFi Spark Ltd,,12/07/2021,166560,442.58,0,Kendal Wifi Maintenance,271800,ICT Telecommunications Mobile
South Lakeland District Council,http://opendatacommunities.org/id/district-council/south-lakeland,31/07/2021,Case Management,Cultural Environmental Regulatory & Planning Services,http://opendatacommunities.org/def/concept/finance/sercop/objective/104,CUMBRIA COUNTY COUNCIL,,21/07/2021,165156,450,0,Contribution to the Cumbria Sport,908000,Public Bodies Council support services
South Lakeland District Council,http://opendatacommunities.org/id/district-council/south-lakeland,31/07/2021,Case Management Regulatory,Cultural Environmental Regulatory & Planning Services,http://opendatacommunities.org/def/concept/finance/sercop/objective/104,A G & P Jackson,,21/07/2021,167082,450,0,Viability assessments,150000,Consultancy
South Lakeland District Council,http://opendatacommunities.org/id/district-council/south-lakeland,31/07/2021,Business Support Community Services,Cultural Environmental Regulatory & Planning Services,http://opendatacommunities.org/def/concept/finance/sercop/objective/104,ELIS UK LTD,228604,07/07/2021,166484,450.44,0,Workwear hire 01/04/21 - 31/03/22,161000,Domestic Goods Commercial
South Lakeland District Council,http://opendatacommunities.org/id/district-council/south-lakeland,31/07/2021,Case Management Account Mgmt,Other Items,,ADECCO UK LIMITED,593232,07/07/2021,165688,451.36,0,Agency Staff for Business Grants Support,261400,HR Temporary & Agency Staff
South Lakeland District Council,http://opendatacommunities.org/id/district-council/south-lakeland,31/07/2021,Case Management People,Housing Services,http://opendatacommunities.org/def/concept/finance/sercop/objective/108,Ashberry Recruitment,7202591,12/07/2021,166197,458.19,0,Agency staff at Town View Fields,261300,HR Recruitment & Assessment
South Lakeland District Council,http://opendatacommunities.org/id/district-council/south-lakeland,31/07/2021,Case Management People,Housing Services,http://opendatacommunities.org/def/concept/finance/sercop/objective/108,Ashberry Recruitment,7202591,26/07/2021,167254,460.14,0,Agency Support Staff at TVF,261300,HR Recruitment & Assessment
South Lakeland District Council,http://opendatacommunities.org/id/district-council/south-lakeland,31/07/2021,Case Management Account Mgmt,Culture and Related Serv,http://opendatacommunities.org/def/concept/finance/sercop/objective/104,TRAVIS PERKINS TRADING CO LTD,733503,19/07/2021,167080,472.8,0,Marshalls BSS Pressed Concrete Slab,152200,Consultancy Technical & Feasibility
South Lakeland District Council,http://opendatacommunities.org/id/district-council/south-lakeland,31/07/2021,Business Support Community Services,Cultural Environmental Regulatory & Planning Services,http://opendatacommunities.org/def/concept/finance/sercop/objective/104,LANCASHIRE DAF,,12/07/2021,166641,481.81,0,Parts,381400,Vehicle Mgt Maintenance
South Lakeland District Council,http://opendatacommunities.org/id/district-council/south-lakeland,31/07/2021,Business Support Community Services,Cultural Environmental Regulatory & Planning Services,http://opendatacommunities.org/def/concept/finance/sercop/objective/104,GREENCHEM SOLUTIONS LTD,5175801,05/07/2021,166222,500,0,AdBlue,189999,Environmental Services Not Elsewhere Cla
South Lakeland District Council,http://opendatacommunities.org/id/district-council/south-lakeland,31/07/2021,Support Services,Central Services,http://opendatacommunities.org/def/concept/finance/sercop/objective/102,GRANTS- MISCELLANEOUS,,26/07/2021,167350,500,0,Locality donation to fund Bee Team,201700,Financial Services Grants
South Lakeland District Council,http://opendatacommunities.org/id/district-council/south-lakeland,31/07/2021,Business Support Community Services,Cultural Environmental Regulatory & Planning Services,http://opendatacommunities.org/def/concept/finance/sercop/objective/104,HAKO MACHINES LIMITED,1414225,28/07/2021,167386,500.07,0,Parts,131000,Cleaning & Janitorial Cleaning Materials
South Lakeland District Council,http://opendatacommunities.org/id/district-council/south-lakeland,31/07/2021,Case Management Regulatory,Cultural Environmental Regulatory & Planning Services,http://opendatacommunities.org/def/concept/finance/sercop/objective/104,BSI (MEMBERSHIP),,26/07/2021,167387,501.6,0,BSI Subscribing Membership,202100,Financial Services Subscriptions
South Lakeland District Council,http://opendatacommunities.org/id/district-council/south-lakeland,31/07/2021,Case Management,Housing Services,http://opendatacommunities.org/def/concept/finance/sercop/objective/108,HOME GROUP RENT A/C,,07/07/2021,166410,504.62,0,RIA Overdale Close,250000,Housing
South Lakeland District Council,http://opendatacommunities.org/id/district-council/south-lakeland,31/07/2021,Case Management Account Mgmt,Central Services,http://opendatacommunities.org/def/concept/finance/sercop/objective/102,ADECCO UK LIMITED,593232,21/07/2021,166457,516.46,0,Agency Workers,261400,HR Temporary & Agency Staff
South Lakeland District Council,http://opendatacommunities.org/id/district-council/south-lakeland,31/07/2021,Case Management Account Mgmt,Central Services,http://opendatacommunities.org/def/concept/finance/sercop/objective/102,HER MAJESTY'S COURTS & TRIBUNAL SERVICE,,05/07/2021,166242,516.5,0,2021-22 C Tax Liability Orders,908001,Public Bodies Other Public Bodies
South Lakeland District Council,http://opendatacommunities.org/id/district-council/south-lakeland,31/07/2021,Case Management Account Mgmt,Cultural Environmental Regulatory & Planning Services,http://opendatacommunities.org/def/concept/finance/sercop/objective/104,Deco Publique,,28/07/2021,167651,517.5,0,Supply of 3 Young People Consultation,290000,Arts & Leisure Services
South Lakeland District Council,http://opendatacommunities.org/id/district-council/south-lakeland,31/07/2021,Case Management Account Mgmt,Other Items,,ADECCO UK LIMITED,593232,19/07/2021,166650,520.8,0,Agency Staff for Business Grants Support,261400,HR Temporary & Agency Staff
South Lakeland District Council,http://opendatacommunities.org/id/district-council/south-lakeland,31/07/2021,Case Management Account Mgmt,Other Items,,ADECCO UK LIMITED,593232,28/07/2021,167440,520.8,0,Agency Staff for Business Grants Support,261400,HR Temporary & Agency Staff
South Lakeland District Council,http://opendatacommunities.org/id/district-council/south-lakeland,31/07/2021,Assets and Commercial Services,Central Services,http://opendatacommunities.org/def/concept/finance/sercop/objective/102,ADECCO UK LIMITED,593232,19/07/2021,166649,524.65,0,cleaning services,261400,HR Temporary & Agency Staff
South Lakeland District Council,http://opendatacommunities.org/id/district-council/south-lakeland,31/07/2021,ICT Group,Central Services,http://opendatacommunities.org/def/concept/finance/sercop/objective/102,DAISY COMMUNICATIONS LTD,4145329,26/07/2021,166872,529.46,0,"Daisy line rental costs, covers 1/4/21",271700,ICT Telecommunications Fixed
South Lakeland District Council,http://opendatacommunities.org/id/district-council/south-lakeland,31/07/2021,Case Management People,Housing Services,http://opendatacommunities.org/def/concept/finance/sercop/objective/108,Landlord,,05/07/2021,166244,536.98,0,FLAT ,250000,Housing
South Lakeland District Council,http://opendatacommunities.org/id/district-council/south-lakeland,31/07/2021,Case Management Account Mgmt,Cultural Environmental Regulatory & Planning Services,http://opendatacommunities.org/def/concept/finance/sercop/objective/104,E H BOOTH & CO LTD,,14/07/2021,166951,550,0,Contribution for Kendal Courtesy Toilet,111200,Catering Food & Beverages
South Lakeland District Council,http://opendatacommunities.org/id/district-council/south-lakeland,31/07/2021,Case Management Account Mgmt,Cultural Environmental Regulatory & Planning Services,http://opendatacommunities.org/def/concept/finance/sercop/objective/104,Comida (Food),,14/07/2021,166952,550,0,Contribution for Kendal Courtesy Toilet,111200,Catering Food & Beverages
South Lakeland District Council,http://opendatacommunities.org/id/district-council/south-lakeland,31/07/2021,Case Management Account Mgmt,Cultural Environmental Regulatory & Planning Services,http://opendatacommunities.org/def/concept/finance/sercop/objective/104,Charlie's Cafe Bar Ltd,4757080,14/07/2021,166953,550,0,Contribution to the Kendal Courtesy,201700,Financial Services Grants
South Lakeland District Council,http://opendatacommunities.org/id/district-council/south-lakeland,31/07/2021,Case Management Account Mgmt,Cultural Environmental Regulatory & Planning Services,http://opendatacommunities.org/def/concept/finance/sercop/objective/104,Finkles Restaurant,,14/07/2021,166954,550,0,Contribution to Kendal Courtesy Toilet,111200,Catering Food & Beverages
South Lakeland District Council,http://opendatacommunities.org/id/district-council/south-lakeland,31/07/2021,Case Management Account Mgmt,Cultural Environmental Regulatory & Planning Services,http://opendatacommunities.org/def/concept/finance/sercop/objective/104,Brew Brothers,,14/07/2021,166955,550,0,Contribution to Kendal Courtesy Toilet,201700,Financial Services Grants
South Lakeland District Council,http://opendatacommunities.org/id/district-council/south-lakeland,31/07/2021,Case Management Account Mgmt,Cultural Environmental Regulatory & Planning Services,http://opendatacommunities.org/def/concept/finance/sercop/objective/104,THE QUAKER TAPESTRY KENDAL LTD,,14/07/2021,166956,550,0,Contribution to Kendal Courtesy Toilet,291400,Arts & Leisure Services Sport & Fitness
South Lakeland District Council,http://opendatacommunities.org/id/district-council/south-lakeland,31/07/2021,Case Management Account Mgmt,Cultural Environmental Regulatory & Planning Services,http://opendatacommunities.org/def/concept/finance/sercop/objective/104,HBN Restaurants Ltd,4184849,14/07/2021,166957,550,0,Contribution for Kendal Courtesy Toilet,201700,Financial Services Grants
South Lakeland District Council,http://opendatacommunities.org/id/district-council/south-lakeland,31/07/2021,Case Management Account Mgmt,Cultural Environmental Regulatory & Planning Services,http://opendatacommunities.org/def/concept/finance/sercop/objective/104,Mrs TK Davies t/a The Bristly Hog,,21/07/2021,167221,550,0,Contribution to Kendal Courtesy Toilet,111200,Catering Food & Beverages
South Lakeland District Council,http://opendatacommunities.org/id/district-council/south-lakeland,31/07/2021,Case Management,Cultural Environmental Regulatory & Planning Services,http://opendatacommunities.org/def/concept/finance/sercop/objective/104,NEWSQUEST MEDIA GROUP LTD,3102566,19/07/2021,166599,554.56,0,Advertising Local Plan Review - Issues,191000,Facilities Advertising
South Lakeland District Council,http://opendatacommunities.org/id/district-council/south-lakeland,31/07/2021,Case Management Account Mgmt,Central Services,http://opendatacommunities.org/def/concept/finance/sercop/objective/102,PITNEY BOWES LTD,182037,26/07/2021,166503,562.5,0,2021 - 22 Stock Envelopes,301200,Mail Services� Postage
South Lakeland District Council,http://opendatacommunities.org/id/district-council/south-lakeland,31/07/2021,Case Management,Housing Services,http://opendatacommunities.org/def/concept/finance/sercop/objective/108,SOUTH LAKES HOUSING RENT A/C,,14/07/2021,166661,575.43,0,Rent ,191700,Facilities Property Management
South Lakeland District Council,http://opendatacommunities.org/id/district-council/south-lakeland,31/07/2021,Case Management People,Housing Services,http://opendatacommunities.org/def/concept/finance/sercop/objective/108,GROWING CONCERNS LTD,,07/07/2021,166199,576,0,"Handy Person Scheme, Invoices sent from",391200,Construction Engineering
South Lakeland District Council,http://opendatacommunities.org/id/district-council/south-lakeland,31/07/2021,Business Support Community Services,Central Services,http://opendatacommunities.org/def/concept/finance/sercop/objective/102,ESRI (UK) Ltd,5649212,26/07/2021,167367,588,0,ArcGIS for Desktop Primary Maintenance,270000,Information Communications Technology
South Lakeland District Council,http://opendatacommunities.org/id/district-council/south-lakeland,31/07/2021,Business Support Community Services,Cultural Environmental Regulatory & Planning Services,http://opendatacommunities.org/def/concept/finance/sercop/objective/104,HYDRAIR TRUCK & TRAILER PARTS LTD,,07/07/2021,166481,590,0,Parts,381500,Vehicle Mgt Parts
South Lakeland District Council,http://opendatacommunities.org/id/district-council/south-lakeland,31/07/2021,Case Management Account Mgmt,Central Services,http://opendatacommunities.org/def/concept/finance/sercop/objective/102,ALLPAY.NET LTD (NCR),6871069,01/07/2021,166439,593.76,0,2021-22 Internet Payment / bank charges,209999,Financial Services Not Elsewhere Classif
South Lakeland District Council,http://opendatacommunities.org/id/district-council/south-lakeland,31/07/2021,Business Support Community Services,Cultural Environmental Regulatory & Planning Services,http://opendatacommunities.org/def/concept/finance/sercop/objective/104,ARCO LIMITED,133804,19/07/2021,166818,594.74,0,Cleaning materials,141100,Clothing Protective
South Lakeland District Council,http://opendatacommunities.org/id/district-council/south-lakeland,31/07/2021,Case Management Regulatory,Central Services,http://opendatacommunities.org/def/concept/finance/sercop/objective/102,IHS GLOBAL LTD,788737,28/07/2021,167705,595,0,Supply of online technical information,151000,Consultancy Business
South Lakeland District Council,http://opendatacommunities.org/id/district-council/south-lakeland,31/07/2021,Support Services,Central Services,http://opendatacommunities.org/def/concept/finance/sercop/objective/102,St John's Chambers,,28/07/2021,167425,600,0,South Lakeland District Council v Mr,281200,Legal Services General Support
South Lakeland District Council,http://opendatacommunities.org/id/district-council/south-lakeland,31/07/2021,Support Services,SLDC as Agent,,Zurich Municipal (BACS),BR7985,12/07/2021,166664,603.59,0,Insurance premium including IPT 21-22,201800,Financial Services Insurance
South Lakeland District Council,http://opendatacommunities.org/id/district-council/south-lakeland,31/07/2021,Case Management Account Mgmt,Central Services,http://opendatacommunities.org/def/concept/finance/sercop/objective/102,ADECCO UK LIMITED,593232,21/07/2021,166456,604.21,0,Agency Workers,261400,HR Temporary & Agency Staff
South Lakeland District Council,http://opendatacommunities.org/id/district-council/south-lakeland,31/07/2021,Case Management Account Mgmt,Central Services,http://opendatacommunities.org/def/concept/finance/sercop/objective/102,ADECCO UK LIMITED,593232,21/07/2021,167119,604.21,0,Agency Workers,261400,HR Temporary & Agency Staff
South Lakeland District Council,http://opendatacommunities.org/id/district-council/south-lakeland,31/07/2021,Case Management Account Mgmt,Central Services,http://opendatacommunities.org/def/concept/finance/sercop/objective/102,ADECCO UK LIMITED,593232,21/07/2021,167154,604.21,0,Agency Workers,261400,HR Temporary & Agency Staff
South Lakeland District Council,http://opendatacommunities.org/id/district-council/south-lakeland,31/07/2021,Case Management Regulatory,Central Services,http://opendatacommunities.org/def/concept/finance/sercop/objective/102,The Oyster Partnership,5020374,12/07/2021,166219,608,0,Agency Officer to cover assessment of,261300,HR Recruitment & Assessment
South Lakeland District Council,http://opendatacommunities.org/id/district-council/south-lakeland,31/07/2021,Case Management Regulatory,Central Services,http://opendatacommunities.org/def/concept/finance/sercop/objective/102,The Oyster Partnership,5020374,12/07/2021,166557,608,0,Agency Officer to cover assessment of,261300,HR Recruitment & Assessment
South Lakeland District Council,http://opendatacommunities.org/id/district-council/south-lakeland,31/07/2021,Business Support Community Services,Cultural Environmental Regulatory & Planning Services,http://opendatacommunities.org/def/concept/finance/sercop/objective/104,Harry Park Tyres Ltd,8131208,05/07/2021,166220,610,0,Tyres,381500,Vehicle Mgt Parts
South Lakeland District Council,http://opendatacommunities.org/id/district-council/south-lakeland,31/07/2021,Case Management Account Mgmt,Central Services,http://opendatacommunities.org/def/concept/finance/sercop/objective/102,MORGAN HUNT UK LIMITED,4349535,07/07/2021,166200,613.58,0, Senior Revenues Officer,269999,HR Not Elsewhere Classified
South Lakeland District Council,http://opendatacommunities.org/id/district-council/south-lakeland,31/07/2021,Case Management,Housing Services,http://opendatacommunities.org/def/concept/finance/sercop/objective/108,Castles & Coasts (Rent Account),,26/07/2021,167230,615.76,0,RIA Overdale Close,250010,Housing Letting Agents
South Lakeland District Council,http://opendatacommunities.org/id/district-council/south-lakeland,31/07/2021,Business Support Community Services,Cultural Environmental Regulatory & Planning Services,http://opendatacommunities.org/def/concept/finance/sercop/objective/104,GARWOOD EUROPE LTD,4333504,28/07/2021,167667,646,0,Parts,182011,Environment Waste Management Consumables
South Lakeland District Council,http://opendatacommunities.org/id/district-council/south-lakeland,31/07/2021,Case Management Account Mgmt,Cultural Environmental Regulatory & Planning Services,http://opendatacommunities.org/def/concept/finance/sercop/objective/104,PARKLAND MACHINERY LTD,5253701,21/07/2021,166876,650,0,"Install small swing, roundabout and",331000,Sports Playground Equipment
South Lakeland District Council,http://opendatacommunities.org/id/district-council/south-lakeland,31/07/2021,Assets and Commercial Services,Central Services,http://opendatacommunities.org/def/concept/finance/sercop/objective/102,J S Cleaning Services,,14/07/2021,166648,704,0,Contract cleaning staff for North,131010,Cleaning & Janitorial Cleaning Materials
South Lakeland District Council,http://opendatacommunities.org/id/district-council/south-lakeland,31/07/2021,Support Services,Central Services,http://opendatacommunities.org/def/concept/finance/sercop/objective/102,JAMES BUTTON & CO,,14/07/2021,166636,745,0,MS Teams Licensing Committee,281300,Legal Services Legal Opinion
South Lakeland District Council,http://opendatacommunities.org/id/district-council/south-lakeland,31/07/2021,Support Services,Central Services,http://opendatacommunities.org/def/concept/finance/sercop/objective/102,JAMES BUTTON & CO,,28/07/2021,167381,745,0,MS Teams Licensing Committee,281300,Legal Services Legal Opinion
South Lakeland District Council,http://opendatacommunities.org/id/district-council/south-lakeland,31/07/2021,Case Management Account Mgmt,Highways & Transport Services,http://opendatacommunities.org/def/concept/finance/sercop/objective/107,METRIC GROUP LIMITED,2560839,28/07/2021,167698,745.5,0,Website hosting costs 1 April 2021 to,359999,Street & Traffic Not Elsewhere Classifie
South Lakeland District Council,http://opendatacommunities.org/id/district-council/south-lakeland,31/07/2021,Case Management Account Mgmt,Highways & Transport Services,http://opendatacommunities.org/def/concept/finance/sercop/objective/107,METRIC GROUP LIMITED,2560839,28/07/2021,167700,745.5,0,Website hosting costs 1 April 2021 to,359999,Street & Traffic Not Elsewhere Classifie
South Lakeland District Council,http://opendatacommunities.org/id/district-council/south-lakeland,31/07/2021,ICT Group,Central Services,http://opendatacommunities.org/def/concept/finance/sercop/objective/102,Nominet UK,,26/07/2021,167389,765.94,0,"Year 1 DNS services, quarterly invoice",261517,ICT-Consultancy
South Lakeland District Council,http://opendatacommunities.org/id/district-council/south-lakeland,31/07/2021,Case Management Regulatory,Central Services,http://opendatacommunities.org/def/concept/finance/sercop/objective/102,The Oyster Partnership,5020374,21/07/2021,167213,770,0,Contract Worker,261300,HR Recruitment & Assessment
South Lakeland District Council,http://opendatacommunities.org/id/district-council/south-lakeland,31/07/2021,Case Management Regulatory,Central Services,http://opendatacommunities.org/def/concept/finance/sercop/objective/102,The Oyster Partnership,5020374,12/07/2021,166556,792,0,Agency Environmental Health Officer,261300,HR Recruitment & Assessment
South Lakeland District Council,http://opendatacommunities.org/id/district-council/south-lakeland,31/07/2021,Case Management Regulatory,Central Services,http://opendatacommunities.org/def/concept/finance/sercop/objective/102,The Oyster Partnership,5020374,19/07/2021,166705,797.4,0,Agency Environmental Health Officer,261300,HR Recruitment & Assessment
South Lakeland District Council,http://opendatacommunities.org/id/district-council/south-lakeland,31/07/2021,Assets and Commercial Services,Central Services,http://opendatacommunities.org/def/concept/finance/sercop/objective/102,Leigh's Removals,,19/07/2021,166708,800,0,removal of furniture and storage of,250000,Housing
South Lakeland District Council,http://opendatacommunities.org/id/district-council/south-lakeland,31/07/2021,Case Management Regulatory,Central Services,http://opendatacommunities.org/def/concept/finance/sercop/objective/102,The Oyster Partnership,5020374,12/07/2021,166218,801.9,0,Agency Environmental Health Officer,261300,HR Recruitment & Assessment
South Lakeland District Council,http://opendatacommunities.org/id/district-council/south-lakeland,31/07/2021,Case Management Account Mgmt,Central Services,http://opendatacommunities.org/def/concept/finance/sercop/objective/102,The Oyster Partnership,5020374,19/07/2021,166704,816,0,Agency Staff - Land Charges (,261300,HR Recruitment & Assessment
South Lakeland District Council,http://opendatacommunities.org/id/district-council/south-lakeland,31/07/2021,Case Management,Housing Services,http://opendatacommunities.org/def/concept/finance/sercop/objective/108,Landlord,,07/07/2021,166412,820,0,Flat ,202000,Financial Services Rents
South Lakeland District Council,http://opendatacommunities.org/id/district-council/south-lakeland,31/07/2021,Business Support Community Services,Cultural Environmental Regulatory & Planning Services,http://opendatacommunities.org/def/concept/finance/sercop/objective/104,AINSWORTH'S GARAGE,,07/07/2021,166491,820,0,Repairs,381400,Vehicle Mgt Maintenance
South Lakeland District Council,http://opendatacommunities.org/id/district-council/south-lakeland,31/07/2021,Case Management Regulatory,Central Services,http://opendatacommunities.org/def/concept/finance/sercop/objective/102,Carrington West,,12/07/2021,166571,828,0,Contract Worker,159999,Consultancy Not Elsewhere Classified
South Lakeland District Council,http://opendatacommunities.org/id/district-council/south-lakeland,31/07/2021,Case Management Regulatory,Central Services,http://opendatacommunities.org/def/concept/finance/sercop/objective/102,Carrington West,,19/07/2021,166701,828,0,Contract Worker,159999,Consultancy Not Elsewhere Classified
South Lakeland District Council,http://opendatacommunities.org/id/district-council/south-lakeland,31/07/2021,Case Management Regulatory,Central Services,http://opendatacommunities.org/def/concept/finance/sercop/objective/102,Carrington West,,26/07/2021,167300,828,0,Contract Worker,159999,Consultancy Not Elsewhere Classified
South Lakeland District Council,http://opendatacommunities.org/id/district-council/south-lakeland,31/07/2021,Case Management Regulatory,Central Services,http://opendatacommunities.org/def/concept/finance/sercop/objective/102,Carrington West,,28/07/2021,167652,828,0,Contract Worker,159999,Consultancy Not Elsewhere Classified
South Lakeland District Council,http://opendatacommunities.org/id/district-council/south-lakeland,31/07/2021,Business Support Community Services,Cultural Environmental Regulatory & Planning Services,http://opendatacommunities.org/def/concept/finance/sercop/objective/104,Romaquip UK,,12/07/2021,166545,829.4,0,Parts,381000,Vehicle Mgt Commercial
South Lakeland District Council,http://opendatacommunities.org/id/district-council/south-lakeland,31/07/2021,Case Management Regulatory,Central Services,http://opendatacommunities.org/def/concept/finance/sercop/objective/102,The Oyster Partnership,5020374,26/07/2021,167215,835.2,0,Agency Environmental Health Officer,261300,HR Recruitment & Assessment
South Lakeland District Council,http://opendatacommunities.org/id/district-council/south-lakeland,31/07/2021,Case Management,Housing Services,http://opendatacommunities.org/def/concept/finance/sercop/objective/108,Landlord,,07/07/2021,166415,839.88,0,Monthly rent ,250000,Housing
South Lakeland District Council,http://opendatacommunities.org/id/district-council/south-lakeland,31/07/2021,Case Management Regulatory,Central Services,http://opendatacommunities.org/def/concept/finance/sercop/objective/102,The Oyster Partnership,5020374,12/07/2021,166555,850,0,Contract Worker,261300,HR Recruitment & Assessment
South Lakeland District Council,http://opendatacommunities.org/id/district-council/south-lakeland,31/07/2021,Case Management Regulatory,Central Services,http://opendatacommunities.org/def/concept/finance/sercop/objective/102,The Oyster Partnership,5020374,07/07/2021,166217,870,0,Contract Worker,261300,HR Recruitment & Assessment
South Lakeland District Council,http://opendatacommunities.org/id/district-council/south-lakeland,31/07/2021,Assets and Commercial Services,Central Services,http://opendatacommunities.org/def/concept/finance/sercop/objective/102,PHS GROUP PLC,,19/07/2021,166589,885.76,0,PO for PHS invoices until april 2022,131312,Cleaning & Janitorial Washroom Sanitat
South Lakeland District Council,http://opendatacommunities.org/id/district-council/south-lakeland,31/07/2021,Case Management,Housing Services,http://opendatacommunities.org/def/concept/finance/sercop/objective/108,JJM Properties,,26/07/2021,167229,890,0,"Deposit and Rent in Advance Room 1, 46",250010,Housing Letting Agents
South Lakeland District Council,http://opendatacommunities.org/id/district-council/south-lakeland,31/07/2021,Case Management Account Mgmt,Central Services,http://opendatacommunities.org/def/concept/finance/sercop/objective/102,CFH Docmail Ltd,1716891,28/07/2021,167675,896.88,0,Annual billing Revenues Postage Whistl,300000,Mail Services
South Lakeland District Council,http://opendatacommunities.org/id/district-council/south-lakeland,31/07/2021,Business Support Community Services,Cultural Environmental Regulatory & Planning Services,http://opendatacommunities.org/def/concept/finance/sercop/objective/104,Terberg Matec (UK) Ltd,,28/07/2021,167649,897.2,0,Parts,381500,Vehicle Mgt Parts
South Lakeland District Council,http://opendatacommunities.org/id/district-council/south-lakeland,31/07/2021,Business Support Community Services,Environment Regulatory,,CUMBRIA COUNTY COUNCIL,,26/07/2021,167114,900,0,"Repair street light at Firs Road,",908000,Public Bodies Council support services
South Lakeland District Council,http://opendatacommunities.org/id/district-council/south-lakeland,31/07/2021,Assets and Commercial Services,Other Items,,LRM Security Ltd,,12/07/2021,166624,930,0,PO to cover vaccine centre security,192213,Facilities Security Manned Guarding
South Lakeland District Council,http://opendatacommunities.org/id/district-council/south-lakeland,31/07/2021,Business Support Community Services,Cultural Environmental Regulatory & Planning Services,http://opendatacommunities.org/def/concept/finance/sercop/objective/104,HAKO MACHINES LIMITED,1414225,07/07/2021,166493,935.54,0,Parts,131000,Cleaning & Janitorial Cleaning Materials
South Lakeland District Council,http://opendatacommunities.org/id/district-council/south-lakeland,31/07/2021,Case Management,Central Services,http://opendatacommunities.org/def/concept/finance/sercop/objective/102,MORGAN HUNT UK LIMITED,4349535,26/07/2021,167302,937.95,0,(Revenues Contractor),269999,HR Not Elsewhere Classified
South Lakeland District Council,http://opendatacommunities.org/id/district-council/south-lakeland,31/07/2021,Case Management Regulatory,Cultural Environmental Regulatory & Planning Services,http://opendatacommunities.org/def/concept/finance/sercop/objective/104,IHS GLOBAL LTD,788737,28/07/2021,167705,952,0,Supply of online technical information,151000,Consultancy Business
South Lakeland District Council,http://opendatacommunities.org/id/district-council/south-lakeland,31/07/2021,Case Management Regulatory,Central Services,http://opendatacommunities.org/def/concept/finance/sercop/objective/102,Carrington West,,26/07/2021,167403,952.2,0,Contract Worker,159999,Consultancy Not Elsewhere Classified
South Lakeland District Council,http://opendatacommunities.org/id/district-council/south-lakeland,31/07/2021,Kendal Town Hall,Central Services,http://opendatacommunities.org/def/concept/finance/sercop/objective/102,SICO EUROPE LIMITED,902613,05/07/2021,165641,969,0,Replacement stage block for Kendal Town,219999,Furniture Not Elsewhere Classified
South Lakeland District Council,http://opendatacommunities.org/id/district-council/south-lakeland,31/07/2021,Case Management Account Mgmt,Cultural Environmental Regulatory & Planning Services,http://opendatacommunities.org/def/concept/finance/sercop/objective/104,CONTINENTAL LANDSCAPES LTD,2108452,12/07/2021,166631,975,0,Grounds maintenance extra works for,391310,Construction Open Spaces Construction
South Lakeland District Council,http://opendatacommunities.org/id/district-council/south-lakeland,31/07/2021,Case Management Account Mgmt,Cultural Environmental Regulatory & Planning Services,http://opendatacommunities.org/def/concept/finance/sercop/objective/104,CONTINENTAL LANDSCAPES LTD,2108452,12/07/2021,166447,976.79,0,New Road grounds maintenance 2021/22,391310,Construction Open Spaces Construction
South Lakeland District Council,http://opendatacommunities.org/id/district-council/south-lakeland,31/07/2021,Case Management Account Mgmt,Cultural Environmental Regulatory & Planning Services,http://opendatacommunities.org/def/concept/finance/sercop/objective/104,CONTINENTAL LANDSCAPES LTD,2108452,19/07/2021,166719,990.12,0,Grounds maintenance extra works for,391310,Construction Open Spaces Construction
South Lakeland District Council,http://opendatacommunities.org/id/district-council/south-lakeland,31/07/2021,Support Services,Central Services,http://opendatacommunities.org/def/concept/finance/sercop/objective/102,GRANTS- MISCELLANEOUS,,19/07/2021,167078,1000,0,Locality donation to fund the purchase,201700,Financial Services Grants
South Lakeland District Council,http://opendatacommunities.org/id/district-council/south-lakeland,31/07/2021,Human Resources,Central Services,http://opendatacommunities.org/def/concept/finance/sercop/objective/102,Skillset Limited,,26/07/2021,167118,1012.5,0,Year 1 costs (software and support) -,261520,Human Resources Training
South Lakeland District Council,http://opendatacommunities.org/id/district-council/south-lakeland,31/07/2021,Case Management Regulatory,Other Items,,The Oyster Partnership,5020374,26/07/2021,167212,1048.04,0,Agency Officer - Licensing,261300,HR Recruitment & Assessment
South Lakeland District Council,http://opendatacommunities.org/id/district-council/south-lakeland,31/07/2021,Business Support Community Services,Cultural Environmental Regulatory & Planning Services,http://opendatacommunities.org/def/concept/finance/sercop/objective/104,Harry Park Tyres Ltd,8131208,05/07/2021,166221,1050,0,Tyres,381500,Vehicle Mgt Parts
South Lakeland District Council,http://opendatacommunities.org/id/district-council/south-lakeland,31/07/2021,Human Resources,Central Services,http://opendatacommunities.org/def/concept/finance/sercop/objective/102,PENNA PLC,1918150,12/07/2021,166429,1052,0,Principal Specialist (Place),261400,HR Temporary & Agency Staff
South Lakeland District Council,http://opendatacommunities.org/id/district-council/south-lakeland,31/07/2021,Case Management Account Mgmt,Central Services,http://opendatacommunities.org/def/concept/finance/sercop/objective/102,MORGAN HUNT UK LIMITED,4349535,07/07/2021,166201,1073.77,0,Senior Revenues Officer,269999,HR Not Elsewhere Classified
South Lakeland District Council,http://opendatacommunities.org/id/district-council/south-lakeland,31/07/2021,Case Management Account Mgmt,Highways & Transport Services,http://opendatacommunities.org/def/concept/finance/sercop/objective/107,BEMROSE BOOTH PARAGON LTD,4891375,05/07/2021,166239,1083.75,0,250000 Aura self adhesive Pay and,191600,Facilities Printing
South Lakeland District Council,http://opendatacommunities.org/id/district-council/south-lakeland,31/07/2021,Case Management People,Housing Services,http://opendatacommunities.org/def/concept/finance/sercop/objective/108,Ashberry Recruitment,7202591,07/07/2021,165680,1087.02,0,Agency staff at Town View Fields,261300,HR Recruitment & Assessment
South Lakeland District Council,http://opendatacommunities.org/id/district-council/south-lakeland,31/07/2021,Case Management,Housing Services,http://opendatacommunities.org/def/concept/finance/sercop/objective/108,Pauline Sanderson,,28/07/2021,167687,1100,0,Rent in advance and deposit for Flat,250000,Housing
South Lakeland District Council,http://opendatacommunities.org/id/district-council/south-lakeland,31/07/2021,Case Management Account Mgmt,Central Services,http://opendatacommunities.org/def/concept/finance/sercop/objective/102,MORGAN HUNT UK LIMITED,4349535,12/07/2021,166452,1101.66,0,Senior Revenues Officer,269999,HR Not Elsewhere Classified
South Lakeland District Council,http://opendatacommunities.org/id/district-council/south-lakeland,31/07/2021,Case Management Account Mgmt,Central Services,http://opendatacommunities.org/def/concept/finance/sercop/objective/102,MORGAN HUNT UK LIMITED,4349535,12/07/2021,166451,1122.57,0,Senior Revenues Officer,269999,HR Not Elsewhere Classified
South Lakeland District Council,http://opendatacommunities.org/id/district-council/south-lakeland,31/07/2021,Case Management People,Central Services,http://opendatacommunities.org/def/concept/finance/sercop/objective/102,Eden Brown Limited,,19/07/2021,166832,1125,0,Payment ,261400,HR Temporary & Agency Staff
South Lakeland District Council,http://opendatacommunities.org/id/district-council/south-lakeland,31/07/2021,Case Management People,Central Services,http://opendatacommunities.org/def/concept/finance/sercop/objective/102,Eden Brown Limited,,21/07/2021,167190,1125,0,Payment for Malcolm Hodgson,261400,HR Temporary & Agency Staff
South Lakeland District Council,http://opendatacommunities.org/id/district-council/south-lakeland,31/07/2021,Case Management People,Central Services,http://opendatacommunities.org/def/concept/finance/sercop/objective/102,Eden Brown Limited,,26/07/2021,167422,1125,0,Payment ,261400,HR Temporary & Agency Staff
South Lakeland District Council,http://opendatacommunities.org/id/district-council/south-lakeland,31/07/2021,Business Support Community Services,Cultural Environmental Regulatory & Planning Services,http://opendatacommunities.org/def/concept/finance/sercop/objective/104,Terberg Matec (UK) Ltd,,28/07/2021,167783,1129.19,0,Parts,381500,Vehicle Mgt Parts
South Lakeland District Council,http://opendatacommunities.org/id/district-council/south-lakeland,31/07/2021,Case Management,Central Services,http://opendatacommunities.org/def/concept/finance/sercop/objective/102,LOCAL GOVERNMENT ASSOCIATION,,26/07/2021,167298,1137,0,"LC, JB, AJ",202100,Financial Services Subscriptions
South Lakeland District Council,http://opendatacommunities.org/id/district-council/south-lakeland,31/07/2021,Case Management,Central Services,http://opendatacommunities.org/def/concept/finance/sercop/objective/102,MORGAN HUNT UK LIMITED,4349535,28/07/2021,167676,1140.75,0,(Revenues Contractor),269999,HR Not Elsewhere Classified
South Lakeland District Council,http://opendatacommunities.org/id/district-council/south-lakeland,31/07/2021,Case Management Account Mgmt,Central Services,http://opendatacommunities.org/def/concept/finance/sercop/objective/102,Konica Minolta Bus Solutions (UK) Ltd,,07/07/2021,166208,1170.37,0,Print room clicks,192000,Facilities Reprographics
South Lakeland District Council,http://opendatacommunities.org/id/district-council/south-lakeland,31/07/2021,Business Support Community Services,Cultural Environmental Regulatory & Planning Services,http://opendatacommunities.org/def/concept/finance/sercop/objective/104,CUMBRIA WASTE RECYCLING LTD,3162439,19/07/2021,167058,1228.5,0,Skip emptying,182012,Environment Waste Management Recycling
South Lakeland District Council,http://opendatacommunities.org/id/district-council/south-lakeland,31/07/2021,Case Management,Central Services,http://opendatacommunities.org/def/concept/finance/sercop/objective/102,MORGAN HUNT UK LIMITED,4349535,12/07/2021,166453,1267.5,0,(Revenues Contractor),269999,HR Not Elsewhere Classified
South Lakeland District Council,http://opendatacommunities.org/id/district-council/south-lakeland,31/07/2021,Case Management,Central Services,http://opendatacommunities.org/def/concept/finance/sercop/objective/102,MORGAN HUNT UK LIMITED,4349535,19/07/2021,166703,1292.85,0,(Revenues Contractor),269999,HR Not Elsewhere Classified
South Lakeland District Council,http://opendatacommunities.org/id/district-council/south-lakeland,31/07/2021,Business Support Community Services,Cultural Environmental Regulatory & Planning Services,http://opendatacommunities.org/def/concept/finance/sercop/objective/104,GARWOOD EUROPE LTD,4333504,26/07/2021,167361,1303.39,0,Parts,182011,Environment Waste Management Consumables
South Lakeland District Council,http://opendatacommunities.org/id/district-council/south-lakeland,31/07/2021,Human Resources,Cultural Environmental Regulatory & Planning Services,http://opendatacommunities.org/def/concept/finance/sercop/objective/104,Choose Occupational Health,7365943,12/07/2021,166570,1312.5,0,Fit for work assessment OHP (60 mins) -,191800,Facilities Public Relations & Image
South Lakeland District Council,http://opendatacommunities.org/id/district-council/south-lakeland,31/07/2021,Case Management,Central Services,http://opendatacommunities.org/def/concept/finance/sercop/objective/102,MORGAN HUNT UK LIMITED,4349535,19/07/2021,166702,1318.2,0,(Revenues Contractor),269999,HR Not Elsewhere Classified
South Lakeland District Council,http://opendatacommunities.org/id/district-council/south-lakeland,31/07/2021,Case Management Account Mgmt,Central Services,http://opendatacommunities.org/def/concept/finance/sercop/objective/102,CFH Docmail Ltd,1716891,28/07/2021,167674,1323.83,0,Annual billing Revenues Printing 2021-22,300000,Mail Services
South Lakeland District Council,http://opendatacommunities.org/id/district-council/south-lakeland,31/07/2021,Business Support Community Services,Cultural Environmental Regulatory & Planning Services,http://opendatacommunities.org/def/concept/finance/sercop/objective/104,APSE,6735100,19/07/2021,167064,1331,0,Membership fee,202100,Financial Services Subscriptions
South Lakeland District Council,http://opendatacommunities.org/id/district-council/south-lakeland,31/07/2021,Support Services,Other Items,,Tactical Security,,12/07/2021,166559,1342.77,0,RHSS - Provision of Marshalls in,192200,Facilities Security
South Lakeland District Council,http://opendatacommunities.org/id/district-council/south-lakeland,31/07/2021,Support Services,Other Items,,Tactical Security,,28/07/2021,167378,1342.77,0,RHSS - Provision of Marshalls in,192200,Facilities Security
South Lakeland District Council,http://opendatacommunities.org/id/district-council/south-lakeland,31/07/2021,Support Services,Other Items,,Tactical Security,,28/07/2021,167379,1342.77,0,RHSS - Provision of Marshalls in,192200,Facilities Security
South Lakeland District Council,http://opendatacommunities.org/id/district-council/south-lakeland,31/07/2021,Case Management Account Mgmt,Central Services,http://opendatacommunities.org/def/concept/finance/sercop/objective/102,The Oyster Partnership,5020374,05/07/2021,166216,1360,0,Agency Staff - Land Charges,261300,HR Recruitment & Assessment
South Lakeland District Council,http://opendatacommunities.org/id/district-council/south-lakeland,31/07/2021,Case Management Account Mgmt,Central Services,http://opendatacommunities.org/def/concept/finance/sercop/objective/102,The Oyster Partnership,5020374,19/07/2021,166707,1360,0,Agency Staff - Land Charges ,261300,HR Recruitment & Assessment
South Lakeland District Council,http://opendatacommunities.org/id/district-council/south-lakeland,31/07/2021,Case Management People,Housing Services,http://opendatacommunities.org/def/concept/finance/sercop/objective/108,Ashberry Recruitment,7202591,05/07/2021,165137,1384.11,0,Agency staff at Town View Fields,261300,HR Recruitment & Assessment
South Lakeland District Council,http://opendatacommunities.org/id/district-council/south-lakeland,31/07/2021,Case Management Account Mgmt,Highways & Transport Services,http://opendatacommunities.org/def/concept/finance/sercop/objective/107,CAPITA BUSINESS SERVICES LTD (NCR),,01/07/2021,167681,1394.81,0,2021-22 Internet Payment / bank charges,261500,HR Training & Conferences
South Lakeland District Council,http://opendatacommunities.org/id/district-council/south-lakeland,31/07/2021,Case Management Regulatory,Cultural Environmental Regulatory & Planning Services,http://opendatacommunities.org/def/concept/finance/sercop/objective/104,RH Environmental Limited,,12/07/2021,166534,1405,0,Subscription to the Noise App,202100,Financial Services Subscriptions
South Lakeland District Council,http://opendatacommunities.org/id/district-council/south-lakeland,31/07/2021,ICT Group,Central Services,http://opendatacommunities.org/def/concept/finance/sercop/objective/102,CABLE & WIRELESS UK (VODAFONE),,14/07/2021,166653,1418.47,0,MAP Dedicated access bearer and PSN,271700,ICT Telecommunications Fixed
South Lakeland District Council,http://opendatacommunities.org/id/district-council/south-lakeland,31/07/2021,Case Management Regulatory,Cultural Environmental Regulatory & Planning Services,http://opendatacommunities.org/def/concept/finance/sercop/objective/104,IHS GLOBAL LTD,788737,28/07/2021,167705,1428,0,Supply of online technical information,151000,Consultancy Business
South Lakeland District Council,http://opendatacommunities.org/id/district-council/south-lakeland,31/07/2021,Business Support Community Services,Cultural Environmental Regulatory & Planning Services,http://opendatacommunities.org/def/concept/finance/sercop/objective/104,LANCASHIRE DAF,,28/07/2021,167372,1439.71,0,Parts,381400,Vehicle Mgt Maintenance
South Lakeland District Council,http://opendatacommunities.org/id/district-council/south-lakeland,31/07/2021,Case Management Account Mgmt,Highways & Transport Services,http://opendatacommunities.org/def/concept/finance/sercop/objective/107,BEMROSE BOOTH PARAGON LTD,4891375,05/07/2021,166238,1445,0,250000 Aura self adhesive Pay and,191600,Facilities Printing
South Lakeland District Council,http://opendatacommunities.org/id/district-council/south-lakeland,31/07/2021,Case Management People,SLDC as Agent,,TEXTHELP SYSTEMS LTD,NI31186,07/07/2021,166532,1470,0,Renewal of Browsealoud,271200,ICT Hardware
South Lakeland District Council,http://opendatacommunities.org/id/district-council/south-lakeland,31/07/2021,Case Management Regulatory,Central Services,http://opendatacommunities.org/def/concept/finance/sercop/objective/102,The Oyster Partnership,5020374,26/07/2021,167214,1480,0,Agency Environmental Health Officer,261300,HR Recruitment & Assessment
South Lakeland District Council,http://opendatacommunities.org/id/district-council/south-lakeland,31/07/2021,Case Management Account Mgmt,Central Services,http://opendatacommunities.org/def/concept/finance/sercop/objective/102,ROYAL MAIL GROUP PLC,,12/07/2021,166633,1492.26,0,2021-22 Postal Charges a/c 0198123013,301200,Mail Services� Postage
South Lakeland District Council,http://opendatacommunities.org/id/district-council/south-lakeland,31/07/2021,Case Management Regulatory,Central Services,http://opendatacommunities.org/def/concept/finance/sercop/objective/102,The Oyster Partnership,5020374,12/07/2021,166215,1496.65,0,Agency Environmental Health Officer,261300,HR Recruitment & Assessment
South Lakeland District Council,http://opendatacommunities.org/id/district-council/south-lakeland,31/07/2021,Case Management Account Mgmt,Central Services,http://opendatacommunities.org/def/concept/finance/sercop/objective/102,CAPITA BUSINESS SERVICES LTD,2299747,26/07/2021,166583,1497.6,0,VOA Occupier Data and ERD/Nursery,261500,HR Training & Conferences
South Lakeland District Council,http://opendatacommunities.org/id/district-council/south-lakeland,31/07/2021,Case Management Regulatory,Central Services,http://opendatacommunities.org/def/concept/finance/sercop/objective/102,The Oyster Partnership,5020374,12/07/2021,166558,1505.65,0,Agency Environmental Health Officer,261300,HR Recruitment & Assessment
South Lakeland District Council,http://opendatacommunities.org/id/district-council/south-lakeland,31/07/2021,Business Support Community Services,Cultural Environmental Regulatory & Planning Services,http://opendatacommunities.org/def/concept/finance/sercop/objective/104,BRIAN ARMISTEAD LTD T/A SINKFALL RECYCLI,4133280,21/07/2021,167233,1525.97,0,Tipping charges,391110,Construction Buildings Construction
South Lakeland District Council,http://opendatacommunities.org/id/district-council/south-lakeland,31/07/2021,Support Services,Central Services,http://opendatacommunities.org/def/concept/finance/sercop/objective/102,BEVAN BRITTAN,OC309219,26/07/2021,167423,1540.5,0,Strategic advice on template Section,280000,Legal Services
South Lakeland District Council,http://opendatacommunities.org/id/district-council/south-lakeland,31/07/2021,Case Management Regulatory,Cultural Environmental Regulatory & Planning Services,http://opendatacommunities.org/def/concept/finance/sercop/objective/104,Acoem UK Ltd,,19/07/2021,166825,1585,0,Replacement OPC laser & pump fitted at,181900,Environment Testing & Inspection
South Lakeland District Council,http://opendatacommunities.org/id/district-council/south-lakeland,31/07/2021,Business Support Community Services,Cultural Environmental Regulatory & Planning Services,http://opendatacommunities.org/def/concept/finance/sercop/objective/104,BRIAN ARMISTEAD LTD T/A SINKFALL RECYCLI,4133280,07/07/2021,166422,1622.88,0,Tipping charges,391110,Construction Buildings Construction
South Lakeland District Council,http://opendatacommunities.org/id/district-council/south-lakeland,31/07/2021,Policy & Partnerships,Central Services,http://opendatacommunities.org/def/concept/finance/sercop/objective/102,CUMBRIA COUNTY COUNCIL,,19/07/2021,166831,1630.91,0,"2021 Acorn, Paycheck and StreetValue",908000,Public Bodies Council support services
South Lakeland District Council,http://opendatacommunities.org/id/district-council/south-lakeland,31/07/2021,Case Management People,Housing Services,http://opendatacommunities.org/def/concept/finance/sercop/objective/108,James Andrews Recruitment Solutions,6834852,12/07/2021,166211,1652.28,0,Payment ,261400,HR Temporary & Agency Staff
South Lakeland District Council,http://opendatacommunities.org/id/district-council/south-lakeland,31/07/2021,Case Management People,Housing Services,http://opendatacommunities.org/def/concept/finance/sercop/objective/108,James Andrews Recruitment Solutions,6834852,12/07/2021,166622,1652.28,0,Payment,261400,HR Temporary & Agency Staff
South Lakeland District Council,http://opendatacommunities.org/id/district-council/south-lakeland,31/07/2021,Case Management People,Housing Services,http://opendatacommunities.org/def/concept/finance/sercop/objective/108,James Andrews Recruitment Solutions,6834852,26/07/2021,167063,1652.28,0,Payment for Bruce Johnson,261400,HR Temporary & Agency Staff
South Lakeland District Council,http://opendatacommunities.org/id/district-council/south-lakeland,31/07/2021,Case Management People,Housing Services,http://opendatacommunities.org/def/concept/finance/sercop/objective/108,James Andrews Recruitment Solutions,6834852,26/07/2021,167392,1652.28,0,Payment ,261400,HR Temporary & Agency Staff
South Lakeland District Council,http://opendatacommunities.org/id/district-council/south-lakeland,31/07/2021,Case Management People,Central Services,http://opendatacommunities.org/def/concept/finance/sercop/objective/102,Eden Brown Limited,,07/07/2021,165696,1662.9,0,Payment ,261400,HR Temporary & Agency Staff
South Lakeland District Council,http://opendatacommunities.org/id/district-council/south-lakeland,31/07/2021,Human Resources,Central Services,http://opendatacommunities.org/def/concept/finance/sercop/objective/102,PENNA PLC,1918150,12/07/2021,166426,1666.66,0,Principal Specialist (Place),261400,HR Temporary & Agency Staff
South Lakeland District Council,http://opendatacommunities.org/id/district-council/south-lakeland,31/07/2021,Human Resources,Central Services,http://opendatacommunities.org/def/concept/finance/sercop/objective/102,PENNA PLC,1918150,12/07/2021,166427,1666.66,0,Principal Specialist (Place),261400,HR Temporary & Agency Staff
South Lakeland District Council,http://opendatacommunities.org/id/district-council/south-lakeland,31/07/2021,Human Resources,Central Services,http://opendatacommunities.org/def/concept/finance/sercop/objective/102,PENNA PLC,1918150,12/07/2021,166428,1666.66,0,Principal Specialist (Place),261400,HR Temporary & Agency Staff
South Lakeland District Council,http://opendatacommunities.org/id/district-council/south-lakeland,31/07/2021,Business Support Community Services,Cultural Environmental Regulatory & Planning Services,http://opendatacommunities.org/def/concept/finance/sercop/objective/104,Harry Park Tyres Ltd,8131208,12/07/2021,166543,1690,0,Tyres,381500,Vehicle Mgt Parts
South Lakeland District Council,http://opendatacommunities.org/id/district-council/south-lakeland,31/07/2021,Human Resources,Central Services,http://opendatacommunities.org/def/concept/finance/sercop/objective/102,Choose Occupational Health,7365943,12/07/2021,166570,1695,0,Fit for work assessment OHP (60 mins) -,191800,Facilities Public Relations & Image
South Lakeland District Council,http://opendatacommunities.org/id/district-council/south-lakeland,31/07/2021,Case Management Account Mgmt,Cultural Environmental Regulatory & Planning Services,http://opendatacommunities.org/def/concept/finance/sercop/objective/104,CONTINENTAL LANDSCAPES LTD,2108452,12/07/2021,166446,1767.43,0,Parks Routine Maintenance for 2021-22,391310,Construction Open Spaces Construction
South Lakeland District Council,http://opendatacommunities.org/id/district-council/south-lakeland,31/07/2021,Case Management Account Mgmt,Cultural Environmental Regulatory & Planning Services,http://opendatacommunities.org/def/concept/finance/sercop/objective/104,WICKSTEED LEISURE LTD,603152,07/07/2021,166198,1805.44,0,Universal Joint Assembly (3 Chains,291400,Arts & Leisure Services Sport & Fitness
South Lakeland District Council,http://opendatacommunities.org/id/district-council/south-lakeland,31/07/2021,Case Management Regulatory,Central Services,http://opendatacommunities.org/def/concept/finance/sercop/objective/102,Macdonald & Company Freelance Ltd,3882135,28/07/2021,167424,1815.33,0,Contract Worker,261400,HR Temporary & Agency Staff
South Lakeland District Council,http://opendatacommunities.org/id/district-council/south-lakeland,31/07/2021,ICT Group,Central Services,http://opendatacommunities.org/def/concept/finance/sercop/objective/102,IT PROFESSIONAL SERVICES (ITPS),,12/07/2021,166577,2000,0,Agreement,279999,ICT Not Elsewhere Classified
South Lakeland District Council,http://opendatacommunities.org/id/district-council/south-lakeland,31/07/2021,Support Services,Central Services,http://opendatacommunities.org/def/concept/finance/sercop/objective/102,Browne Jacobson LLP,OC306448,28/07/2021,167428,2000,0,Our Ref: CONT0556,281200,Legal Services General Support
South Lakeland District Council,http://opendatacommunities.org/id/district-council/south-lakeland,31/07/2021,Case Management Regulatory,Central Services,http://opendatacommunities.org/def/concept/finance/sercop/objective/102,Macdonald & Company Freelance Ltd,3882135,19/07/2021,166587,2002,0,Contract Worker,261400,HR Temporary & Agency Staff
South Lakeland District Council,http://opendatacommunities.org/id/district-council/south-lakeland,31/07/2021,Case Management Account Mgmt,Cultural Environmental Regulatory & Planning Services,http://opendatacommunities.org/def/concept/finance/sercop/objective/104,CONTINENTAL LANDSCAPES LTD,2108452,14/07/2021,166720,2025,0,Remove existing and install new 9 gates,391310,Construction Open Spaces Construction
South Lakeland District Council,http://opendatacommunities.org/id/district-council/south-lakeland,31/07/2021,Case Management Account Mgmt,Cultural Environmental Regulatory & Planning Services,http://opendatacommunities.org/def/concept/finance/sercop/objective/104,CONTINENTAL LANDSCAPES LTD,2108452,12/07/2021,166446,2039.34,0,Parks Routine Maintenance for 2021-22,391310,Construction Open Spaces Construction
South Lakeland District Council,http://opendatacommunities.org/id/district-council/south-lakeland,31/07/2021,Case Management Account Mgmt,Highways & Transport Services,http://opendatacommunities.org/def/concept/finance/sercop/objective/107,BEMROSE BOOTH PARAGON LTD,4891375,05/07/2021,166237,2068,0,"350,000 Aura self adhesive Pay and",191600,Facilities Printing
South Lakeland District Council,http://opendatacommunities.org/id/district-council/south-lakeland,31/07/2021,Case Management Account Mgmt,Cultural Environmental Regulatory & Planning Services,http://opendatacommunities.org/def/concept/finance/sercop/objective/104,PS BUSINESS MATTERS,8147185,19/07/2021,166655,2200,0,Kendal Futures contract payment,151900,Consultancy Management
South Lakeland District Council,http://opendatacommunities.org/id/district-council/south-lakeland,31/07/2021,Support Services,Central Services,http://opendatacommunities.org/def/concept/finance/sercop/objective/102,TIAA Ltd,4546319,14/07/2021,166657,2210,0,21-22 internal audit service,201100,Financial Services Audit
South Lakeland District Council,http://opendatacommunities.org/id/district-council/south-lakeland,31/07/2021,Case Management Regulatory,Central Services,http://opendatacommunities.org/def/concept/finance/sercop/objective/102,Macdonald & Company Freelance Ltd,3882135,19/07/2021,167081,2235.33,0,Contract Worker,261400,HR Temporary & Agency Staff
South Lakeland District Council,http://opendatacommunities.org/id/district-council/south-lakeland,31/07/2021,Case Management People,Central Services,http://opendatacommunities.org/def/concept/finance/sercop/objective/102,MORGAN HUNT UK LIMITED,4349535,14/07/2021,166621,2240.02,0,Payment ,269999,HR Not Elsewhere Classified
South Lakeland District Council,http://opendatacommunities.org/id/district-council/south-lakeland,31/07/2021,Case Management Account Mgmt,Cultural Environmental Regulatory & Planning Services,http://opendatacommunities.org/def/concept/finance/sercop/objective/104,CONTINENTAL LANDSCAPES LTD,2108452,12/07/2021,166444,2260.1,0,For disposal of waste to Kendal Fell,391310,Construction Open Spaces Construction
South Lakeland District Council,http://opendatacommunities.org/id/district-council/south-lakeland,31/07/2021,Case Management People,Central Services,http://opendatacommunities.org/def/concept/finance/sercop/objective/102,MORGAN HUNT UK LIMITED,4349535,28/07/2021,167398,2287.68,0,Payment ,269999,HR Not Elsewhere Classified
South Lakeland District Council,http://opendatacommunities.org/id/district-council/south-lakeland,31/07/2021,Case Management Regulatory,Central Services,http://opendatacommunities.org/def/concept/finance/sercop/objective/102,Macdonald & Company Freelance Ltd,3882135,12/07/2021,166566,2356.67,0,Contract Worker,261400,HR Temporary & Agency Staff
South Lakeland District Council,http://opendatacommunities.org/id/district-council/south-lakeland,31/07/2021,Case Management People,Central Services,http://opendatacommunities.org/def/concept/finance/sercop/objective/102,MORGAN HUNT UK LIMITED,4349535,12/07/2021,166214,2383,0,Payment ,269999,HR Not Elsewhere Classified
South Lakeland District Council,http://opendatacommunities.org/id/district-council/south-lakeland,31/07/2021,Case Management People,Central Services,http://opendatacommunities.org/def/concept/finance/sercop/objective/102,MORGAN HUNT UK LIMITED,4349535,21/07/2021,167089,2383,0,Payment for ,269999,HR Not Elsewhere Classified
South Lakeland District Council,http://opendatacommunities.org/id/district-council/south-lakeland,31/07/2021,Support Services,Central Services,http://opendatacommunities.org/def/concept/finance/sercop/objective/102,Print.UK.Com,,21/07/2021,167237,2436,0,Printing of postal vote envelopes,191600,Facilities Printing
South Lakeland District Council,http://opendatacommunities.org/id/district-council/south-lakeland,31/07/2021,ICT Group,Central Services,http://opendatacommunities.org/def/concept/finance/sercop/objective/102,IT PROFESSIONAL SERVICES (ITPS),,12/07/2021,166578,2450.53,0,Agreement 008-Breakfix-Storwise,279999,ICT Not Elsewhere Classified
South Lakeland District Council,http://opendatacommunities.org/id/district-council/south-lakeland,31/07/2021,Business Support Community Services,Cultural Environmental Regulatory & Planning Services,http://opendatacommunities.org/def/concept/finance/sercop/objective/104,BRIAN ARMISTEAD LTD T/A SINKFALL RECYCLI,4133280,19/07/2021,167065,2463.61,0,Tipping charges,391110,Construction Buildings Construction
South Lakeland District Council,http://opendatacommunities.org/id/district-council/south-lakeland,31/07/2021,Business Support Community Services,Cultural Environmental Regulatory & Planning Services,http://opendatacommunities.org/def/concept/finance/sercop/objective/104,Masterstaff Limited,2777593,14/07/2021,166717,2664,0,Agency staff,261300,HR Recruitment & Assessment
South Lakeland District Council,http://opendatacommunities.org/id/district-council/south-lakeland,31/07/2021,Business Support Community Services,Cultural Environmental Regulatory & Planning Services,http://opendatacommunities.org/def/concept/finance/sercop/objective/104,BRIAN ARMISTEAD LTD T/A SINKFALL RECYCLI,4133280,07/07/2021,166461,2723.73,0,Tipping charges,391110,Construction Buildings Construction
South Lakeland District Council,http://opendatacommunities.org/id/district-council/south-lakeland,31/07/2021,Business Support Community Services,Cultural Environmental Regulatory & Planning Services,http://opendatacommunities.org/def/concept/finance/sercop/objective/104,PENNINGTONS (KENDAL) LIMITED,434649,07/07/2021,166423,2750,0,Use of Boundary Bank,182013,Environment Waste Mgt Waste Collection
South Lakeland District Council,http://opendatacommunities.org/id/district-council/south-lakeland,31/07/2021,Business Support Community Services,Cultural Environmental Regulatory & Planning Services,http://opendatacommunities.org/def/concept/finance/sercop/objective/104,Masterstaff Limited,2777593,26/07/2021,167364,2750.4,0,Agency staff,261300,HR Recruitment & Assessment
South Lakeland District Council,http://opendatacommunities.org/id/district-council/south-lakeland,31/07/2021,Customer Services,Cultural Environmental Regulatory & Planning Services,http://opendatacommunities.org/def/concept/finance/sercop/objective/104,MILNTHORPE KENNELS & CATTERY,8932302,12/07/2021,166531,2791.67,0,Stray dog kennelling fees 2021/22,181500,Environment Animal Services
South Lakeland District Council,http://opendatacommunities.org/id/district-council/south-lakeland,31/07/2021,Case Management Account Mgmt,Highways & Transport Services,http://opendatacommunities.org/def/concept/finance/sercop/objective/107,BEMROSE BOOTH PARAGON LTD,4891375,12/07/2021,165720,2821.12,0,"304,000 ACS Reflex Tickets for Multi",191600,Facilities Printing
South Lakeland District Council,http://opendatacommunities.org/id/district-council/south-lakeland,31/07/2021,Business Support Community Services,Cultural Environmental Regulatory & Planning Services,http://opendatacommunities.org/def/concept/finance/sercop/objective/104,Masterstaff Limited,2777593,07/07/2021,166494,2880,0,Agency staff,261300,HR Recruitment & Assessment
South Lakeland District Council,http://opendatacommunities.org/id/district-council/south-lakeland,31/07/2021,Business Support Community Services,Cultural Environmental Regulatory & Planning Services,http://opendatacommunities.org/def/concept/finance/sercop/objective/104,Masterstaff Limited,2777593,28/07/2021,167445,2901.6,0,Agency staff,261300,HR Recruitment & Assessment
South Lakeland District Council,http://opendatacommunities.org/id/district-council/south-lakeland,31/07/2021,Business Support Community Services,Cultural Environmental Regulatory & Planning Services,http://opendatacommunities.org/def/concept/finance/sercop/objective/104,RPC BPI RECYCLED PRODUCTS,350729,28/07/2021,167447,2948.4,0,Black liners - 455x785x990 50/F 400/PK,182013,Environment Waste Mgt Waste Collection
South Lakeland District Council,http://opendatacommunities.org/id/district-council/south-lakeland,31/07/2021,Case Management,Housing Services,http://opendatacommunities.org/def/concept/finance/sercop/objective/108,MANNA HOUSE,8041948,19/07/2021,166581,3000,0,Housing advicy and advocacy,250000,Housing
South Lakeland District Council,http://opendatacommunities.org/id/district-council/south-lakeland,31/07/2021,ICT Group,Central Services,http://opendatacommunities.org/def/concept/finance/sercop/objective/102,IT PROFESSIONAL SERVICES (ITPS),,07/07/2021,165708,3475,0,APC Smart-UPS SRT5KRMXLI 5000VA,279999,ICT Not Elsewhere Classified
South Lakeland District Council,http://opendatacommunities.org/id/district-council/south-lakeland,31/07/2021,Case Management Account Mgmt,Cultural Environmental Regulatory & Planning Services,http://opendatacommunities.org/def/concept/finance/sercop/objective/104,Springboard Research Ltd,,26/07/2021,167232,3570,0,Kendal town centre footfall monitoring,191500,Facilities Market Research
South Lakeland District Council,http://opendatacommunities.org/id/district-council/south-lakeland,31/07/2021,Case Management Regulatory,Central Services,http://opendatacommunities.org/def/concept/finance/sercop/objective/102,LAKE DISTRICT NATIONAL PARK AUTHORITY,,19/07/2021,166849,3880,0,LAND CHARGE SEARCH ENQUIRIES LDNP,201700,Financial Services Grants
South Lakeland District Council,http://opendatacommunities.org/id/district-council/south-lakeland,31/07/2021,Human Resources,Central Services,http://opendatacommunities.org/def/concept/finance/sercop/objective/102,MIDLAND SOFTWARE LTD,1852206,01/07/2021,167054,3889.75,0,Quarterly Charge - iTrent Software,271600,ICT Software Customised & Bespoke
South Lakeland District Council,http://opendatacommunities.org/id/district-council/south-lakeland,31/07/2021,Case Management,Cultural Environmental Regulatory & Planning Services,http://opendatacommunities.org/def/concept/finance/sercop/objective/104,Land Use Consultants Ltd,,28/07/2021,167697,3930,0,Creation of a virtual consultation room,150000,Consultancy
South Lakeland District Council,http://opendatacommunities.org/id/district-council/south-lakeland,31/07/2021,Case Management,Housing Services,http://opendatacommunities.org/def/concept/finance/sercop/objective/108,HOME GROUP LTD,IP22981R,05/07/2021,166196,3958.5,0,rent for cragg view,250000,Housing
South Lakeland District Council,http://opendatacommunities.org/id/district-council/south-lakeland,31/07/2021,Case Management Account Mgmt,Cultural Environmental Regulatory & Planning Services,http://opendatacommunities.org/def/concept/finance/sercop/objective/104,CONTINENTAL LANDSCAPES LTD,2108452,12/07/2021,166445,4109.55,0,For gravedigging for 2021/22,391310,Construction Open Spaces Construction
South Lakeland District Council,http://opendatacommunities.org/id/district-council/south-lakeland,31/07/2021,Westmorland Centre Parking Office,Highways & Transport Services,http://opendatacommunities.org/def/concept/finance/sercop/objective/107,CAPITA BUSINESS SERVICES LTD (NCR),,01/07/2021,166454,4184.04,0,Credit card commission April 2021-March,261500,HR Training & Conferences
South Lakeland District Council,http://opendatacommunities.org/id/district-council/south-lakeland,31/07/2021,Business Support Community Services,Cultural Environmental Regulatory & Planning Services,http://opendatacommunities.org/def/concept/finance/sercop/objective/104,Romaquip UK,,07/07/2021,166495,4250,0,Vehicle hire,381000,Vehicle Mgt Commercial
South Lakeland District Council,http://opendatacommunities.org/id/district-council/south-lakeland,31/07/2021,Case Management Account Mgmt,Central Services,http://opendatacommunities.org/def/concept/finance/sercop/objective/102,CAPITA BUSINESS SERVICES LTD (NCR),,01/07/2021,167681,4612.96,0,2021-22 Internet Payment / bank charges,261500,HR Training & Conferences
South Lakeland District Council,http://opendatacommunities.org/id/district-council/south-lakeland,31/07/2021,Support Services,Transport,http://opendatacommunities.org/def/concept/finance/sercop/objective/107,Bloom Procurement Services Ltd,,26/07/2021,167252,4801.97,0,"WSC, Kendal - Concrete & Decking Repairs",151900,Consultancy Management
South Lakeland District Council,http://opendatacommunities.org/id/district-council/south-lakeland,31/07/2021,Business Support Community Services,Cultural Environmental Regulatory & Planning Services,http://opendatacommunities.org/def/concept/finance/sercop/objective/104,ALLSTAR BUSINESS SOLUTIONS LTD (NCR),2631112,01/07/2021,166496,5053.73,0,Fuel to 30/6,381600,Vehicle Mgt Leasing
South Lakeland District Council,http://opendatacommunities.org/id/district-council/south-lakeland,31/07/2021,Business Support Community Services,Cultural Environmental Regulatory & Planning Services,http://opendatacommunities.org/def/concept/finance/sercop/objective/104,Initial,1298292,19/07/2021,166823,5643.05,0,Clinical waste collections,131011,Cleaning & Janitorial Cleaning Materials
South Lakeland District Council,http://opendatacommunities.org/id/district-council/south-lakeland,31/07/2021,Case Management Account Mgmt,SLDC as Agent,,PAY BY PHONE (PAYPOINT),,19/07/2021,167115,5779.33,0,Fees payable for use of PaybyPhone at,351400,Street & Traffic Traffic Control
South Lakeland District Council,http://opendatacommunities.org/id/district-council/south-lakeland,31/07/2021,ICT Group,Central Services,http://opendatacommunities.org/def/concept/finance/sercop/objective/102,VODAFONE LIMITED,1471587,05/07/2021,166243,5779.86,0,"Mobile phone costs, covers 1/4/21 to",271800,ICT Telecommunications Mobile
South Lakeland District Council,http://opendatacommunities.org/id/district-council/south-lakeland,31/07/2021,Customer Services,Cultural Environmental Regulatory & Planning Services,http://opendatacommunities.org/def/concept/finance/sercop/objective/104,RIGHT 2 WORK,,12/07/2021,166579,5803,0,Bulky Waste scheme 2021/22,321010,Social Care Adult Advice & Counselling
South Lakeland District Council,http://opendatacommunities.org/id/district-council/south-lakeland,31/07/2021,Case Management,Central Services,http://opendatacommunities.org/def/concept/finance/sercop/objective/102,CARLISLE CITY COUNCIL,,21/07/2021,167351,6000,0,Cumbria One Public Estate Programme for,908000,Public Bodies Council support services
South Lakeland District Council,http://opendatacommunities.org/id/district-council/south-lakeland,31/07/2021,Support Services,Central Services,http://opendatacommunities.org/def/concept/finance/sercop/objective/102,ROYAL MAIL GROUP PLC,,12/07/2021,166647,6303.89,0,Election response plus service,301200,Mail Services� Postage
South Lakeland District Council,http://opendatacommunities.org/id/district-council/south-lakeland,31/07/2021,Support Services,Central Services,http://opendatacommunities.org/def/concept/finance/sercop/objective/102,Print.UK.Com,,21/07/2021,167238,6607.65,0,Ballot paper printing for elections,191600,Facilities Printing
South Lakeland District Council,http://opendatacommunities.org/id/district-council/south-lakeland,31/07/2021,Case Management Account Mgmt,Central Services,http://opendatacommunities.org/def/concept/finance/sercop/objective/102,MERITEC LTD,3224622,26/07/2021,167250,7696,0,Revenues Processing Support (Adrian,391200,Construction Engineering
South Lakeland District Council,http://opendatacommunities.org/id/district-council/south-lakeland,31/07/2021,Case Management People,Housing Services,http://opendatacommunities.org/def/concept/finance/sercop/objective/108,Locata Housing Services Ltd,,28/07/2021,167399,8000,0,Housing Options Software,271440,ICT Software
South Lakeland District Council,http://opendatacommunities.org/id/district-council/south-lakeland,31/07/2021,Support Services,SLDC as Agent,,Zurich Municipal (BACS),BR7985,12/07/2021,166662,8280.38,0,Insurance premium including IPT 21-22,201800,Financial Services Insurance
South Lakeland District Council,http://opendatacommunities.org/id/district-council/south-lakeland,31/07/2021,Case Management People,SLDC as Agent,,SOUTH LAKES HOUSING,IP031419,26/07/2021,167401,8745.69,0,Cumbria Choice Co-Ordinator,191700,Facilities Property Management
South Lakeland District Council,http://opendatacommunities.org/id/district-council/south-lakeland,31/07/2021,ICT Group,Central Services,http://opendatacommunities.org/def/concept/finance/sercop/objective/102,GGP Systems Limited,2685491,05/07/2021,166202,9000,0,GGP NGz Maintenance/GGP Licence From,270000,Information Communications Technology
South Lakeland District Council,http://opendatacommunities.org/id/district-council/south-lakeland,31/07/2021,Human Resources,Central Services,http://opendatacommunities.org/def/concept/finance/sercop/objective/102,Reach Printing Services Limited,2064914,19/07/2021,166834,9927.03,0,South Lakeland News,191600,Facilities Printing
South Lakeland District Council,http://opendatacommunities.org/id/district-council/south-lakeland,31/07/2021,Legal Governance Democracy,SLDC as Agent,,DUDDON PARISH COUNCIL,,26/07/2021,167396,10872.6,0,SALE0017 - Land at Foxfield,908000,Public Bodies Council support services
South Lakeland District Council,http://opendatacommunities.org/id/district-council/south-lakeland,31/07/2021,Case Management Account Mgmt,Cultural Environmental Regulatory & Planning Services,http://opendatacommunities.org/def/concept/finance/sercop/objective/104,CONTINENTAL LANDSCAPES LTD,2108452,12/07/2021,166446,10876.47,0,Parks Routine Maintenance for 2021-22,391310,Construction Open Spaces Construction
South Lakeland District Council,http://opendatacommunities.org/id/district-council/south-lakeland,31/07/2021,ICT Group,Central Services,http://opendatacommunities.org/def/concept/finance/sercop/objective/102,CWSI UK Ltd,8032836,07/07/2021,165648,11600,0,MobileIron Enterprise Mobility,271300,Information communication Maintenance
South Lakeland District Council,http://opendatacommunities.org/id/district-council/south-lakeland,31/07/2021,Business Support Community Services,Cultural Environmental Regulatory & Planning Services,http://opendatacommunities.org/def/concept/finance/sercop/objective/104,CUMBRIA WASTE RECYCLING LTD,3162439,26/07/2021,167413,11973.54,0,Empty recycling banks,182012,Environment Waste Management Recycling
South Lakeland District Council,http://opendatacommunities.org/id/district-council/south-lakeland,31/07/2021,Case Management People,Housing Services,http://opendatacommunities.org/def/concept/finance/sercop/objective/108,Bloom Procurement Services Ltd,,14/07/2021,166418,13046.67,0,Private Sector Stock Condition Report,151900,Consultancy Management
South Lakeland District Council,http://opendatacommunities.org/id/district-council/south-lakeland,31/07/2021,Business Support Community Services,Cultural Environmental Regulatory & Planning Services,http://opendatacommunities.org/def/concept/finance/sercop/objective/104,ALLSTAR BUSINESS SOLUTIONS LTD (NCR),2631112,01/07/2021,166496,17718.43,0,Fuel to 30/6,381600,Vehicle Mgt Leasing
South Lakeland District Council,http://opendatacommunities.org/id/district-council/south-lakeland,31/07/2021,Support Services,SLDC as Agent,,Zurich Municipal (BACS),BR7985,12/07/2021,166665,17917.02,0,Insurance premium including IPT 21-22,201800,Financial Services Insurance
South Lakeland District Council,http://opendatacommunities.org/id/district-council/south-lakeland,31/07/2021,Case Management Account Mgmt,Non-Service Payments,,Ulverston BID Company Ltd,9761005,14/07/2021,166835,20930.88,0,Monies collected,201700,Financial Services Grants
South Lakeland District Council,http://opendatacommunities.org/id/district-council/south-lakeland,31/07/2021,Case Management People,SLDC as Agent,,CIVICA UK LTD,1628868,07/07/2021,164599,24000,0,Charges for new IT System,271600,ICT Software Customised & Bespoke
South Lakeland District Council,http://opendatacommunities.org/id/district-council/south-lakeland,31/07/2021,Business Support Community Services,Central Services,http://opendatacommunities.org/def/concept/finance/sercop/objective/102,Weir & Carmichael Ltd,551299,12/07/2021,166547,29304.45,0,Recycling bags,182011,Environment Waste Management Consumables
South Lakeland District Council,http://opendatacommunities.org/id/district-council/south-lakeland,31/07/2021,Support Services,SLDC as Agent,,Zurich Municipal (BACS),BR7985,12/07/2021,166667,29886.61,0,Insurance premium including IPT 21-22,201800,Financial Services Insurance
South Lakeland District Council,http://opendatacommunities.org/id/district-council/south-lakeland,31/07/2021,Case Management Account Mgmt,Cultural Environmental Regulatory & Planning Services,http://opendatacommunities.org/def/concept/finance/sercop/objective/104,CONTINENTAL LANDSCAPES LTD,2108452,12/07/2021,166446,51799.2,0,Parks Routine Maintenance for 2021-22,391310,Construction Open Spaces Construction
South Lakeland District Council,http://opendatacommunities.org/id/district-council/south-lakeland,31/07/2021,Policy & Partnerships,Central Services,http://opendatacommunities.org/def/concept/finance/sercop/objective/102,MERITEC LTD,3224622,14/07/2021,163989,54000,0,MPLS Data Link (SLDC and EDC) to,391200,Construction Engineering
South Lakeland District Council,http://opendatacommunities.org/id/district-council/south-lakeland,31/07/2021,Support Services,Central Services,http://opendatacommunities.org/def/concept/finance/sercop/objective/102,CUMBRIA LGPS,,12/07/2021,166564,69115.36,0,21/22 CCC Contribution re past pensions,908999,Public Bodies Not Elsewhere Classified
South Lakeland District Council,http://opendatacommunities.org/id/district-council/south-lakeland,31/07/2021,Support Services,Central Services,http://opendatacommunities.org/def/concept/finance/sercop/objective/102,LAMBERT SMITH HAMPTON GROUP,2521225,12/07/2021,166554,80268.66,0,Property Services Contract (Apr - Sept,191700,Facilities Property Management
South Lakeland District Council,http://opendatacommunities.org/id/district-council/south-lakeland,31/07/2021,Case Management People,Housing,http://opendatacommunities.org/def/concept/finance/sercop/objective/108,Castles and Coasts Housing Association,,19/07/2021,166851,99000,0,"Yewdale Road, Coniston",250000,Housing
South Lakeland District Council,http://opendatacommunities.org/id/district-council/south-lakeland,31/07/2021,Business Support Community Services,Central Services,http://opendatacommunities.org/def/concept/finance/sercop/objective/102,DENNIS EAGLE LTD,3794455,12/07/2021,166710,125554,0,12.0t RCV per ESPO Framework 215_9,381300,Vehicle Mgt Industrial
South Lakeland District Council,http://opendatacommunities.org/id/district-council/south-lakeland,31/07/2021,Case Management Account Mgmt,Central Services,http://opendatacommunities.org/def/concept/finance/sercop/objective/102,Caddick Construction (NW) Limited,,12/07/2021,166414,169829.93,0,Contract number NW127 - Refurbishment,391100,Construction Buildings
South Lakeland District Council,http://opendatacommunities.org/id/district-council/south-lakeland,31/07/2021,Business Support Community Services,Central Services,http://opendatacommunities.org/def/concept/finance/sercop/objective/102,DENNIS EAGLE LTD,3794455,28/07/2021,167404,177009,0,24.0t RCV per ESPO Framework 215_9,381300,Vehicle Mgt Industrial
South Lakeland District Council,http://opendatacommunities.org/id/district-council/south-lakeland,31/07/2021,Business Support Community Services,Central Services,http://opendatacommunities.org/def/concept/finance/sercop/objective/102,DENNIS EAGLE LTD,3794455,28/07/2021,167405,177332,0,26.0t RCV per ESPO Framework 215_9,381300,Vehicle Mgt Industrial
South Lakeland District Council,http://opendatacommunities.org/id/district-council/south-lakeland,31/07/2021,Support Services,SLDC as Agent,,Zurich Municipal (BACS),BR7985,12/07/2021,166666,341676.57,0,Insurance premium including IPT 21-22,201800,Financial Services Insurance
